Cogmind - Beta 13 X1 @@@ ROGUE MODE // 2023.09.20 @ 19:07:34 Player: Plexion Result: Escaped! Performance ------------- Evolutions (9) 4500 Regions Visited (34) 6800 Robots Destroyed (522) 2610 Value Destroyed (24289) 24289 Prototype IDs (75) 1500 Alien Tech Used (3) 600 Bonus (14457) 14457 TOTAL SCORE: 54756 Bonus ------- High Alert Combat Kills 2540 Follower Combat Kills 2929 Entered Garrisons 400 Used RIF Installer 1000 Network Hubs Disabled 800 Aligned with FarCom 300 Met Data Miner 300 Triggered Deep Caves Wall 500 Exposed GOLEM Chamber 500 A7 Reached Mainframe 300 Met R17 at Cetus 500 Found Hidden Lab 3000 Win 3000 Friendly Fire -1612 Cogmind --------- Core Integrity 1482/1600 Matter 300/300 Energy 1828/1850 System Corruption 0% Temperature Cool (98) Movement Walking (179) Ox1 Location To Epsilon Eridani Parts ------- > --- POWER (5) -------- Assembled Flux Generator Quantum Reactor (fused) Quantum Reactor Reinforced Quantum Reactor > --- PROPULSION (6) --- Biometal Leg Biometal Leg Biometal Leg Biometal Leg Assembled Alloy Leg Assembled Alloy Leg > --- UTILITY (12) ----- High-capacity Storage Unit Assembled Biocell Array Assembled Combat Suite Quantum Capacitor Experimental Transmission Jammer Centrium Medium Armor Plating Assembled Alloy Armor Graphene Brace AEGIS Remote Shield GOLEM Unit > --- WEAPON (3) ------- Assembled Focal Cannon Guided Remote Datajack CR-A16's Behemoth Slayer > --- INVENTORY (20) --- Centrium Leg Advanced Cooling System Advanced Cooling System Experimental Energy Well (600) Experimental Energy Well (600) Experimental Energy Well (600) Quantum Capacitor Heavy Insulated Plating 7V-RTL's Ultimate Field Antimissile System Hacking Suite Quantum Router Relay Coupler [NC] (24) Advanced Component Analysis Suite Core Reset Matrix Enhanced Nova Cannon Enhanced Nova Cannon Rocket Array Peak State ------------ > --- POWER ------------ Assembled Flux Generator Quantum Reactor Quantum Reactor Reinforced Quantum Reactor > --- PROPULSION ------- Biometal Leg Biometal Leg Biometal Leg Biometal Leg Assembled Alloy Leg Assembled Alloy Leg > --- UTILITY ---------- High-capacity Storage Unit Assembled Biocell Array Assembled Combat Suite Quantum Capacitor Experimental Transmission Jammer Centrium Medium Armor Plating Assembled Alloy Armor Graphene Brace AEGIS Remote Shield GOLEM Unit > --- WEAPON ----------- Assembled Focal Cannon Guided Remote Datajack CR-A16's Behemoth Slayer > --- INVENTORY -------- Centrium Leg Experimental Energy Well Experimental Energy Well Experimental Energy Well Quantum Capacitor Heavy Insulated Plating Advanced Force Field 7V-RTL's Ultimate Field Antimissile System Hacking Suite Quantum Router Relay Coupler [NC] Relay Coupler [NC] Advanced Component Analysis Suite Core Reset Matrix Enhanced Nova Cannon Enhanced Nova Cannon Rocket Array [Rating: 230] Favorites ----------- Power Assembled Flux Generator Engine Improved Ion Engine Power Core Enhanced Nuclear Core Reactor Assembled Flux Generator Propulsion Assembled Alloy Leg Treads Armored Treads Leg Assembled Alloy Leg Utility High-capacity Storage Unit Device GOLEM Unit Storage High-capacity Storage Unit Processor Advanced Targeting Computer Hackware Relay Coupler [Programmer] Protection Assembled Alloy Armor Weapon Assembled Focal Cannon Energy Gun High-powered Shock Rifle Energy Cannon Assembled Focal Cannon Ballistic Gun Gauss Rifle Launcher Precision Grenade Launcher Special Weapon Advanced Remote Datajack Impact Weapon Heavy Flail Slashing Weapon Axe Piercing Weapon CR-A16's Behemoth Slayer Special Melee Weapon Advanced Datajack Build | -11 -10 -10 -9 -9 -9 -8 -8 -8 -8 -8 -7 -7 -7 -6 -6 -6 -6 -6 -6 -5 -5 -5 -5 -5 -5 -4 -4 -4 -3 -3 -3 -3 -2 -1 ------- Run | Jun Mat Min Mat Min Exi Min Mat Gar Mat Gar Fac Low Dat Pro Fac Low Low Zio Dee Pro Fac Ext Cet Arc Hub Fac Upp War Pro Res Arm Lab Res Acc Slots Evolved 18 | . . . 2 . . . 2 . . . 2 . . . 2 . . . . . 2 . . . . 2 . . . 2 . . 2 2 Power 3 | . . . . . . . . . . . . . . . 1 . . . . . . . . . . . . . . 1 . . . 1 Propulsion 4 | . . . 1 . . . 1 . . . . . . . . . . . . . . . . . . . . . . . . . 2 . Utility 10 | . . . 1 . . . 1 . . . 2 . . . 1 . . . . . 2 . . . . 1 . . . 1 . . . 1 Weapon 1 | . . . . . . . . . . . . . . . . . . . . . . . . . . 1 . . . . . . . . Parts Attached 451 | 6 6 4 42 4 . 5 12 22 12 13 11 5 1 28 31 9 16 47 36 4 10 6 5 4 23 14 1 . 13 24 20 5 4 8 Power 30 | 1 . 1 4 . . . 1 2 3 1 1 . . 1 1 . 3 3 1 . . . . . . . . . . 2 3 1 . 1 Engine 8 | 1 . 1 4 . . . . . 2 . . . . . . . . . . . . . . . . . . . . . . . . . Core 14 | . . . . . . . 1 2 1 1 1 . . 1 1 . 3 2 . . . . . . . . . . . . 1 . . . Reactor 8 | . . . . . . . . . . . . . . . . . . 1 1 . . . . . . . . . . 2 2 1 . 1 Propulsion 64 | 2 . . 18 1 . . 4 5 3 2 2 . . 4 3 . 1 6 1 . . . 3 . . 2 . . . 1 1 . 1 4 Treads 59 | 2 . . 18 1 . . 4 5 3 2 2 . . 4 3 . 1 6 1 . . . 3 . . 1 . . . 1 1 . 1 . Leg 5 | . . . . . . . . . . . . . . . . . . . . . . . . . . 1 . . . . . . . 4 Wheel . | . . . . . . . . . . . . . . . . . . . . . . . . . . . . . . . . . . . Hover . | . . . . . . . . . . . . . . . . . . . . . . . . . . . . . . . . . . . Flight . | . . . . . . . . . . . . . . . . . . . . . . . . . . . . . . . . . . . Utility 178 | 1 3 . 6 1 . . 5 2 1 1 4 3 . 7 13 5 9 18 17 1 8 6 2 4 14 6 1 . 6 16 10 2 3 3 Device 99 | . . . . . . . 2 1 . . . 1 . 3 10 5 8 13 8 . 5 2 . 1 5 2 1 . 3 12 10 2 2 3 Storage 15 | 1 2 . . . . . . . . 1 1 . . . . . . 2 2 . 1 . . 1 1 1 . . 1 1 . . . . Processor 13 | . 1 . 1 . . . 1 . . . 2 1 . 1 1 . . 1 . . 1 . . . . 1 . . . 1 . . 1 . Hackware 8 | . . . . . . . 1 . . . . . . 1 1 . . . . . 1 . . . 2 1 . . 1 . . . . . Protection 43 | . . . 5 1 . . 1 1 1 . 1 1 . 2 1 . 1 2 7 1 . 4 2 2 6 1 . . 1 2 . . . . Artifact . | . . . . . . . . . . . . . . . . . . . . . . . . . . . . . . . . . . . Weapon 179 | 2 3 3 14 2 . 5 2 13 5 9 4 2 1 16 14 4 3 20 17 3 2 . . . 9 6 . . 7 5 6 2 . . Energy Gun 8 | . . . 2 . . . . . . . . . . . . . . . 6 . . . . . . . . . . . . . . . Energy Cannon 23 | . . . . . . . . . 3 5 2 2 1 6 2 . . 1 . . . . . . . . . . . . 1 . . . Ballistic Gun 49 | 2 2 1 10 1 . 3 2 7 1 . . . . 2 7 3 2 6 . . . . . . . . . . . . . . . . Ballistic Cannon . | . . . . . . . . . . . . . . . . . . . . . . . . . . . . . . . . . . . Launcher 41 | . 1 2 2 1 . 2 . 2 . 1 1 . . 2 2 1 1 8 4 1 . . . . . 2 . . 5 1 2 . . . Special Weapon 30 | . . . . . . . . . . . . . . 3 . . . 4 5 1 2 . . . 7 3 . . . 2 1 2 . . Impact Weapon 7 | . . . . . . . . . . . 1 . . 3 3 . . . . . . . . . . . . . . . . . . . Slashing Weapon 9 | . . . . . . . . 4 1 3 . . . . . . . . . . . . . . . . . . 1 . . . . . Piercing Weapon 8 | . . . . . . . . . . . . . . . . . . 1 2 1 . . . . 1 . . . . 1 2 . . . Special Melee Weapon 4 | . . . . . . . . . . . . . . . . . . . . . . . . . 1 1 . . 1 1 . . . . Unidentified Prototypes 32 | . . . 1 . . . 1 . . . . . . . 3 . . 7 3 . . 1 2 . 2 1 . . 3 . 3 5 . . Corrupted Parts 1 | . . . . . . . . . . . . . . 1 . . . . . . . . . . . . . . . . . . . . System Corruption 11 | . . . . . . . . . . . . . . 11 . . . . . . . . . . . . . . . . . . . . Parts Lost 59 | . . 2 2 2 . 1 . 2 2 3 1 . . 7 3 . 2 4 3 2 . . 1 . 13 1 . . 1 6 1 . . . Power 8 | . . 1 . . . . . . 1 . . . . 1 . . . 2 . . . . . . 1 . . . . 2 . . . . Propulsion 15 | . . . . . . . . 1 1 2 . . . 3 2 . 1 . 2 . . . 1 . 1 1 . . . . . . . . Utility 25 | . . . 2 1 . . . 1 . . 1 . . 1 1 . 1 1 1 2 . . . . 9 . . . 1 2 1 . . . Weapon 11 | . . 1 . 1 . 1 . . . 1 . . . 2 . . . 1 . . . . . . 2 . . . . 2 . . . . Highest Loss Streak 10 | . . 2 1 1 . 1 . 1 1 2 1 . . 4 1 . 1 3 2 1 . . 1 . 10 1 . . 1 1 1 . . . To Critical Strikes 5 | . . . . . . . . . . . . . . 1 . . . . 1 . . . 1 . . 1 . . . 1 . . . . Average Slot Usage (%) 87 | . 93 99 99 99 100 99 99 100 90 89 92 100 85 98 92 93 92 90 83 74 81 81 82 76 79 80 84 68 83 82 79 75 79 82 Engine 2 | . 14 13 11 11 11 11 6 . 3 7 . . . . . . . . . . . . . . . . . . . . . . . . Core 2 | . . . . . . . 2 9 3 1 7 7 7 7 12 13 12 7 . . . . . . . . . . . . . . . . Reactor 3 | . . . . . . . . . . . . . . . . . . 5 8 6 5 5 5 5 4 5 5 5 5 8 9 10 12 11 Treads 17 | . 28 28 32 33 33 33 35 36 35 36 30 30 30 28 26 26 26 20 12 6 5 5 5 5 4 2 5 5 5 4 4 4 8 1 Leg 4 | . . . . . . . . . . . . . . . . . . . 5 13 11 11 11 9 11 10 10 7 10 9 9 8 8 19 Device 9 | . . . . . . . 8 3 1 . . 7 7 5 5 6 6 12 8 8 21 13 11 12 9 15 15 15 16 21 22 20 20 23 Storage 9 | . 14 14 11 11 11 11 9 9 9 9 7 7 7 7 6 6 6 11 12 13 11 11 11 10 11 10 10 10 10 9 9 9 8 7 Processor 8 | . 8 14 12 11 11 11 9 9 9 9 23 23 23 23 20 20 20 7 5 . 4 5 5 5 4 4 5 5 4 2 . . . . Hackware 1 | . . . . . . . . 5 . . . . . 2 . . . . . . 2 1 . . 4 5 5 5 5 4 . . . . Protection 9 | . . . 9 10 11 11 9 9 9 9 7 7 7 6 6 6 6 11 14 11 5 12 17 14 12 9 10 10 8 5 8 9 8 7 Energy Cannon 6 | . . . . . . . . . 13 15 13 10 . 12 . . . 4 4 11 9 11 11 8 9 12 15 2 14 11 4 2 4 3 Ballistic Gun 5 | . 27 27 17 17 22 21 18 15 3 . . . . . 11 13 13 2 . . . . . . . . . . . . . . . . Naked Turns . | . . . . . . . . . . . . . . . . . . . . . . . . . . . . . . . . . . . Heaviest Build 210 | 11 27 28 38 38 38 38 40 47 61 81 82 73 66 79 87 88 86 140 145 125 129 134 134 137 137 147 151 151 151 175 167 193 193 210 Greatest Support 172 | 40 40 40 69 69 69 69 89 100 102 92 93 93 93 93 93 93 100 118 110 60 80 60 80 60 80 100 50 60 70 60 60 60 60 172 Greatest Overweight (x) 4 | . . . 1 . . . . . . . . . . . 1 . . 1 2 2 2 2 2 2 4 2 3 3 2 2 2 3 3 2 Average Overweight (x) . | . . . . . . . . . . . . . . . . . . . 1 1 1 2 1 1 1 1 2 2 1 1 2 2 2 1 Largest Inventory Capacity 20 | 8 15 15 15 15 15 15 15 15 15 20 20 20 20 20 20 20 20 20 20 20 20 20 20 20 20 20 20 20 20 20 20 20 20 20 Average Capacity 18 | 6 10 15 15 15 15 15 15 15 15 18 20 20 20 20 20 20 20 20 19 20 19 20 20 19 20 19 20 20 20 20 20 20 20 20 Most Carried 20 | 2 9 10 15 15 14 15 15 15 15 14 20 20 20 20 20 20 20 20 20 20 20 20 20 20 20 14 13 14 18 20 20 20 20 20 Average Carried 16 | . 5 9 13 13 11 14 14 14 14 13 15 19 20 18 19 19 18 19 17 19 18 19 19 18 16 12 13 13 15 17 19 19 19 19 Final Capacity 20 | 8 15 15 15 15 15 15 15 15 15 20 20 20 20 20 20 20 20 20 20 20 20 20 20 20 20 20 20 20 20 20 20 20 20 20 Final Carried 20 | 2 9 10 15 13 14 15 15 15 14 12 20 19 20 20 20 20 18 20 20 20 20 20 20 20 11 13 13 14 16 19 20 19 19 20 Class Distribution -------------------- 31% | Mutant 23% | Golem 14% | Bothacker-Golem 11% | Scavenger-Mutant 10% | Skirmisher 4% | Generator-Mutant Dominant Class ---------------- Mutant | -10/Materials Mutant | -10/Mines Mutant | -9/Materials Mutant | -9/Mines Mutant | -9/Exiles Mutant | -8/Mines Mutant | -8/Materials Mutant | -8/Garrison Mutant | -8/Materials Mutant | -8/Garrison Skirmisher | -7/Factory Assassin | -7/Lower Caves Mutant | -7/Data Miner Mutant | -6/Proximity Caves Commander-Skirmisher | -6/Factory Skirmisher | -6/Lower Caves Skirmisher | -6/Lower Caves Scavenger-Mutant | -6/Zion Scavenger-Mutant | -6/Deep Caves Bothacker-Golem | -5/Proximity Caves Bothacker-Golem | -5/Factory Bothacker-Golem | -5/Extension Bothacker-Golem | -5/Cetus Bothacker-Golem | -5/Archives Bothacker-Golem | -5/Hub_04(d) Golem | -4/Factory Golem | -4/Upper Caves Mutant | -4/Warlord Golem | -3/Proximity Caves Golem | -3/Research Golem | -3/Armory Generator-Mutant | -3/Lab Generator-Mutant | -2/Research Generator-Mutant | -1/Access Resources | -11 -10 -10 -9 -9 -9 -8 -8 -8 -8 -8 -7 -7 -7 -6 -6 -6 -6 -6 -6 -5 -5 -5 -5 -5 -5 -4 -4 -4 -3 -3 -3 -3 -2 -1 ----------- Run | Jun Mat Min Mat Min Exi Min Mat Gar Mat Gar Fac Low Dat Pro Fac Low Low Zio Dee Pro Fac Ext Cet Arc Hub Fac Upp War Pro Res Arm Lab Res Acc Matter Collected 11032 | 106 397 158 1004 175 . 243 662 739 320 198 187 . . 558 634 320 627 1434 500 55 126 181 50 40 387 316 26 . 386 392 494 . 277 40 Remotely 1029 | . . . . . . . . . . . . . . . . . 14 1015 . . . . . . . . . . . . . . . . Salvage Created 25386 | . 441 158 1939 161 . 319 1023 921 732 799 307 . . 1288 583 186 591 1057 1787 430 460 1215 666 393 1885 1148 137 . 753 3209 1743 . 442 613 Parts 1296 | . 32 14 131 14 . 15 61 48 34 33 17 . . 54 41 12 20 89 15 16 23 40 39 13 88 82 5 . 38 173 95 . 28 26 Haulers Intercepted 10 | . 2 . 5 . . . 1 . 1 . . . . . . . . . . . . . . . 1 . . . . . . . . . Recyclers Shooed 8 | . . . 2 . . . 2 . 1 . . . . 1 . . . . . . . . . . . 1 . . . 1 . . . . Parts Field Recycled . | . . . . . . . . . . . . . . . . . . . . . . . . . . . . . . . . . . . Retrieved Matter . | . . . . . . . . . . . . . . . . . . . . . . . . . . . . . . . . . . . Parts Self-Destructed 144 | . . . . . . . . . . . . . . 59 . 10 19 . . 14 . . . . . . 12 . 30 . . . . . Prevented 13 | . . . . . . . . . . . . . . 3 . 1 . . . . . . . . . . . . 9 . . . . . Kills | -11 -10 -10 -9 -9 -9 -8 -8 -8 -8 -8 -7 -7 -7 -6 -6 -6 -6 -6 -6 -5 -5 -5 -5 -5 -5 -4 -4 -4 -3 -3 -3 -3 -2 -1 ------- Run | Jun Mat Min Mat Min Exi Min Mat Gar Mat Gar Fac Low Dat Pro Fac Low Low Zio Dee Pro Fac Ext Cet Arc Hub Fac Upp War Pro Res Arm Lab Res Acc Combat Hostiles Destroyed 457 | . 11 5 26 7 . 7 17 24 11 15 8 . . 24 11 6 13 9 64 10 8 11 10 4 30 18 2 . 22 42 30 . 6 6 Melee 6 | . . . . . . . . . 2 . . . . . . . . . 3 . . . . . 1 . . . . . . . . . Guns 100 | . 8 2 22 3 . 1 17 16 1 . . . . . 11 2 10 2 5 . . . . . . . . . . . . . . . Cannons 182 | . . . . . . . . . 8 9 3 . . 15 . . . 4 2 4 5 11 10 4 18 9 2 . 6 39 23 . 6 4 AOE 152 | . 3 3 4 4 . 6 . 8 . 4 4 . . 8 . 4 3 2 46 6 3 . . . 10 9 . . 16 3 6 . . . Classes Destroyed 30 | . 6 1 5 2 . . . 2 1 1 . . . 1 . . 2 3 3 . . . . . 2 . . . . . 1 . . . Worker 27 | . . . 5 . . 2 1 . 2 . . . . . 2 . . . . . 2 . . . 6 4 . . . 3 . . . . Builder 12 | . . . 3 1 . . . . . . 1 . . 1 1 . . . . . . . . . 2 1 . . . 2 . . . . Tunneler 3 | . 1 . . 1 . . . . . . . . . . . . . . . . . . . . 1 . . . . . . . . . Hauler 10 | . 2 . 5 . . . 1 . 1 . . . . . . . . . . . . . . . 1 . . . . . . . . . Recycler 13 | . . 1 4 . . 3 . . . . . . . 1 . . . . . . . 1 . . 1 2 . . . . . . . . Minesweeper 1 | . . . . . . . . . . . . . . . . . 1 . . . . . . . . . . . . . . . . . Mechanic 3 | . . . 1 . . . 1 . . . . . . . . . . . . . . . . . . . . . . 1 . . . . Operator 6 | . 1 . 2 . . . 1 . . . 1 . . . . . . . . . . . . 1 . . . . . . . . . . Watcher 22 | . 2 . 4 . . . . . 1 . . . . 2 . . . . . . . . 1 . 2 3 . . . 4 3 . . . Swarmer 85 | . 6 3 4 3 . 4 . 7 . 4 4 . . 8 1 4 7 . . 2 . . . . 3 4 . . 14 4 3 . . . Saboteur 1 | . . . . . . . . . . . . . . . . . . . . . . . . . . . . . . . 1 . . . Grunt 114 | . 5 2 12 1 . 3 9 13 7 . . . . 4 . . 5 . . 4 2 6 4 . 9 . 2 . 6 10 7 . . 3 Brawler 12 | . . . . . . . . . . . . . . 2 2 . . . . 2 1 . . . . . . . . 2 3 . . . Duelist 8 | . . . 1 1 . . . . . . . . . 2 . . 1 . . . 1 1 . . . . . . . . . . . 1 Protector 4 | . . . . . . . . . 1 . . . . 1 . . . . . . 1 . . . 1 . . . . . . . . . Sentry 64 | . . . 9 . . . 8 2 3 7 2 . . 5 1 1 . . . 1 1 4 . 4 6 . . . 1 4 4 . 1 . Demolisher 1 | . . . . 1 . . . . . . . . . . . . . . . . . . . . . . . . . . . . . . Specialist 4 | . . . . . . . . . . . . . . . . . . . . . . . . . 2 . . . . . 2 . . . Hunter 25 | . . . . . . . . . . 3 . . . 2 2 1 . . . 1 . . . . 2 6 . . . 6 . . 2 . Programmer 49 | . . . . . . . . 1 . 1 2 . . . 5 . . . . . 2 . 2 . . 8 . . . 15 10 . 3 . Heavy 2 | . . . . . . . . . . . . . . . . . . . . . . . . . 1 . . . . 1 . . . . Behemoth 6 | . . . . . . . . 1 . . . . . . . . . . . . . 1 . . 1 . . . 1 . . . . 2 Cetus Guard 3 | . . . . . . . . . . . . . . . . . . . . . . . 3 . . . . . . . . . . . Lightning 5 | . . . . . . . . . . . . . . . . . . . . . . . . . 5 . . . . . . . . . Zionite 50 | . . . . . . . . . . . . . . . . . . 50 . . . . . . . . . . . . . . . . Z-Light 6 | . . . . . . . . . . . . . . . . . . . 6 . . . . . . . . . . . . . . . Samaritan 1 | . . . . . . . . . . . . . . . . . 1 . . . . . . . . . . . . . . . . . Tinkerer 5 | . . . . . . . . . . . . . . . . . . 5 . . . . . . . . . . . . . . . . Assembler 2 | . . . . . . . . . . . . . . . . . . . 2 . . . . . . . . . . . . . . . Assembled 48 | . . . . 1 . . . . . . . . . . . . . . 47 . . . . . . . . . . . . . . . Golem 11 | . . . . . . . . . . . . . . . . . . . 11 . . . . . . . . . . . . . . . Thug 2 | . . . 1 . . . . . . . . . . . . . . . . . . . 1 . . . . . . . . . . . Savage 1 | . . . . . . . . . . . . . . . . . 1 . . . . . . . . . . . . . . . . . Butcher 1 | . . . . . . . . . . . . . . . . . . 1 . . . . . . . . . . . . . . . . Martyr 1 | . . . . . . . . . . . . . . . . . . 1 . . . . . . . . . . . . . . . . Marauder 1 | . . . . . . . . . . . . . . . . . . 1 . . . . . . . . . . . . . . . . Mutant 5 | . . . . . . . . . . . . . . . . . . 5 . . . . . . . . . . . . . . . . Best Kill Streak 47 | . 4 3 6 3 . 4 3 4 5 4 4 . . 4 3 5 4 9 47 4 5 3 4 3 9 7 2 . 9 5 7 . 3 4 Combat Bots Only 45 | . 3 3 5 3 . 4 3 4 5 4 4 . . 4 2 5 4 3 45 4 5 3 4 1 8 6 2 . 9 5 7 . 3 4 Max Kills in Single Turn 28 | . 2 1 3 2 . 2 1 2 1 2 2 . . 3 1 4 2 3 28 4 3 1 1 1 6 5 1 . 5 5 5 . 1 1 Gunslinging 1 | . . . 1 . . . . 1 . . . . . . . . . . . . . . . . . . . . . . . . . . Exploded 27 | . 2 1 3 2 . 2 . 2 . 2 2 . . 3 . 4 2 1 27 4 3 . . . 1 4 . . 5 3 5 . . . Melee 1 | . . . . . . . . . 1 . . . . . . . . . 1 . . . . . 1 . . . . . . . . . Uniques/NPCs Destroyed 2 | . . . . . . . . . . . . . . . . . . 2 . . . . . . . . . . . . . . . . 7V-RTL (-6/Zion) Imprinter (-6/Zion) Combat | -11 -10 -10 -9 -9 -9 -8 -8 -8 -8 -8 -7 -7 -7 -6 -6 -6 -6 -6 -6 -5 -5 -5 -5 -5 -5 -4 -4 -4 -3 -3 -3 -3 -2 -1 -------- Run | Jun Mat Min Mat Min Exi Min Mat Gar Mat Gar Fac Low Dat Pro Fac Low Low Zio Dee Pro Fac Ext Cet Arc Hub Fac Upp War Pro Res Arm Lab Res Acc Damage Taken 30298 | . 366 167 1019 585 . 211 747 1220 1379 713 484 . . 1713 905 482 468 2555 1479 952 342 219 369 428 6597 1073 197 51 1349 2329 636 . 260 1003 Core 2695 | . 39 66 88 118 . 36 69 46 313 67 6 . . 68 27 39 32 276 284 81 16 10 . 17 417 129 . . 101 161 71 . . 118 Absorbed by Shields 3845 | . . . . . . . 293 113 . . . . . . 85 113 90 301 411 . . 106 72 . 198 . . . . 389 480 . 263 931 Reduced by Siege Mode 163 | . . . . . . . . . . . . . . . . . . . . 12 . 3 8 . 48 . . . 76 . . . . 16 Redirected to Shielding 115 | . . . . . . . . . . . . . . . . . . . 115 . . . . . . . . . . . . . . . Ignored by Resistances 2868 | . . . . . . . 68 62 . . . . . . . . . . . 190 70 64 89 91 419 218 39 9 282 554 213 . 107 393 Regen/Repaired (Parts) 979 | . . . . . . . . . . . . . . . . . . . . . . 12 115 105 747 . . . . . . . . . Core Remaining (%) 64 | 100 . 58 . . . 39 . . . 10 . . . 89 . . . . . 13 . . . . 54 . . . 80 . . 77 100 92 Volleys Fired 1876 | . 46 12 128 17 . 24 77 81 43 40 39 . . 112 44 12 42 282 68 32 44 39 23 21 100 48 4 . 40 201 146 25 33 53 Largest 3 | . 2 2 2 2 . 2 2 2 2 2 2 . . 2 2 2 2 2 2 2 2 2 2 2 2 3 3 . 3 3 1 1 1 1 Hottest 180 | . 40 40 98 46 . 46 50 63 60 120 180 . . 180 118 61 61 118 120 50 50 50 50 50 50 75 75 . 75 75 55 25 25 25 Shots Fired 2962 | . 90 21 251 31 . 39 154 155 80 78 70 . . 191 90 23 83 354 120 45 54 78 45 42 152 94 11 . 81 272 146 26 33 53 Gun 1128 | . 88 18 246 28 . 30 154 150 9 . . . . . 87 22 81 113 102 . . . . . . . . . . . . . . . Cannon 1589 | . . . . . . . . . 71 76 66 . . 161 3 . . 181 5 41 33 78 45 42 121 88 11 . 75 259 121 26 33 53 Launcher 108 | . 2 3 5 3 . 9 . 5 . 2 4 . . 8 . 1 2 41 7 1 . . . . . 4 . . 6 2 3 . . . Special 137 | . . . . . . . . . . . . . . 22 . . . 19 6 3 21 . . . 31 2 . . . 11 22 . . . Kinetic 960 | . 88 18 180 28 . 30 154 150 9 . . . . . 87 22 81 113 . . . . . . . . . . . . . . . . Thermal 1655 | . . . 66 . . . . . 71 76 66 . . 161 3 . . 181 5 41 33 78 45 42 121 88 11 . 75 259 121 26 33 53 Explosive 153 | . 2 3 5 3 . 9 . 5 . 2 4 . . 8 . 1 2 60 13 4 . . . . 17 4 . . 6 2 3 . . . Electromagnetic 102 | . . . . . . . . . . . . . . . . . . . 102 . . . . . . . . . . . . . . . Robot Hit Streak 41 | . 8 15 31 9 . 3 32 16 20 24 18 . . 14 12 14 13 21 16 17 12 21 24 27 36 33 6 . 11 26 41 . 7 17 Robot Miss Streak 5 | . 4 1 4 1 . 2 2 3 2 2 3 . . 4 4 2 3 5 5 2 1 2 1 2 4 3 2 . 3 4 2 . 3 2 Penetration Max 1 | . . . . . . . . 1 . . . . . . 1 . 1 1 . . . . . . . . . . . . . . . . Secondary Targets 9 | . . . 1 1 . . . 2 . . . . . . . . 4 1 . . . . . . . . . . . . . . . . Max Gunslinging Chain 1 | . . . 1 1 . . . 1 . . . . . . . . 1 1 . . . . . . . . . . . . . . . . Capacitor 356 | . . . . . . . . . . . . . . . . . . . . . . . . . . . . . . 123 121 26 33 53 Shots Hit Robots 1965 | . 53 18 177 24 . 19 125 114 62 72 31 . . 127 63 15 60 172 83 28 40 52 36 34 118 58 6 . 43 177 114 . 22 22 Core Hits 1128 | . 30 12 72 12 . 19 44 43 23 18 16 . . 50 25 9 31 89 186 26 12 24 19 12 85 69 4 . 42 87 49 . 10 10 Critical Kills 5 | . . . . . . . 1 1 . . . . . 1 1 . . 1 . . . . . . . . . . . . . . . . Critical Parts Destroyed 6 | . . 1 . . . . . . . . . . . . . . 1 4 . . . . . . . . . . . . . . . . Critical Strikes 40 | . . 1 10 . . . 1 2 . 1 . . . 1 1 . 1 7 6 1 . . . . 8 . . . . . . . . . Burn 10 | . . . 10 . . . . . . . . . . . . . . . . . . . . . . . . . . . . . . . Meltdown 2 | . . . . . . . . . . . . . . 1 . . . 1 . . . . . . . . . . . . . . . . Destroy 10 | . . 1 . . . . 1 2 . . . . . . 1 . 1 4 . . . . . . . . . . . . . . . . Corrupt 4 | . . . . . . . . . . . . . . . . . . . 4 . . . . . . . . . . . . . . . Sever 10 | . . . . . . . . . . 1 . . . . . . . 2 1 1 . . . . 5 . . . . . . . . . Impale 4 | . . . . . . . . . . . . . . . . . . . 1 . . . . . 3 . . . . . . . . . Melee Attacks 110 | . . . . . . . . 10 14 24 4 . . 3 3 . . . 20 . . . . . 16 10 . . 1 3 . . . 2 Impact 10 | . . . . . . . . . . . 4 . . 3 3 . . . . . . . . . . . . . . . . . . . Slashing 48 | . . . . . . . . 10 14 24 . . . . . . . . . . . . . . . . . . . . . . . . Piercing 34 | . . . . . . . . . . . . . . . . . . . 20 . . . . . 12 . . . . . . . . 2 Sneak Attacks 5 | . . . . . . . . . 1 . 1 . . . . . . . . . . . . . 1 1 . . . 1 . . . . Combat Hostiles 1 | . . . . . . . . . . . . . . . . . . . . . . . . . . . . . . 1 . . . . Follow-up Attacks . | . . . . . . . . . . . . . . . . . . . . . . . . . . . . . . . . . . . Damage Inflicted 77452 | . 775 402 3394 527 . 886 1964 2658 1801 2673 1276 . . 3564 1437 469 1525 7049 6342 1943 1664 2621 1592 1517 7356 3776 312 . 3447 8777 5682 . 1057 966 Guns 14424 | . 652 163 2975 338 . 261 1944 2135 104 . . . . . 1379 256 1337 1795 1085 . . . . . . . . . . . . . . . Cannons 39144 | . . . . . . . . . 1277 1539 912 . . 2851 . . . 1888 . 1065 1058 2614 1592 1517 3637 2360 312 . 1583 8449 4467 . 1057 966 Explosions 20120 | . 112 239 400 189 . 625 . 523 . 264 278 . . 713 . 213 188 3026 4419 758 605 . . . 2838 1395 . . 1864 256 1215 . . . Melee 2361 | . . . . . . . . . 412 870 86 . . . . . . . 685 . . . . . 308 . . . . . . . . . Ramming 223 | . 11 . 19 . . . 20 . 8 . . . . . 58 . . . . . 1 7 . . 6 21 . . . 72 . . . . Kinetic 12280 | . 652 163 1916 338 . 261 1944 2135 104 . . . . . 1379 256 1337 1795 . . . . . . . . . . . . . . . . Thermal 41138 | . . . 1059 . . . . . 1277 1539 912 . . 2937 . . . 1888 158 1065 1663 2614 1592 1517 3637 2446 312 . 1583 8449 4467 . 1057 966 Explosive 18546 | . 112 239 400 189 . 625 . 523 . 264 278 . . 627 . 213 188 3026 4261 758 . . . . 2345 1163 . . 1864 256 1215 . . . Electromagnetic 1724 | . . . . . . . . . . . . . . . . . . . 1085 . . . . . 493 146 . . . . . . . . Impact 86 | . . . . . . . . . . . 86 . . . . . . . . . . . . . . . . . . . . . . . Slashing 2462 | . . . . . . . . . 412 870 . . . . . . . 340 153 120 . . . . 567 . . . . . . . . . Piercing 993 | . . . . . . . . . . . . . . . . . . . 685 . . . . . 308 . . . . . . . . . Highest Corruption 23 | . 1 1 . . . . . 1 4 5 1 1 1 12 10 10 10 10 . . 1 . . . 23 7 7 8 . 4 4 3 4 . Average Corruption 5 | . 1 1 . . . . . 1 2 4 1 1 1 2 6 10 10 10 . . 1 . . . 18 5 7 7 . 1 2 3 3 . Corruption Purged 11 | . . . . . . . . . . . . . . . . . . . . . 1 . . . . . . . . 4 6 . . . Corruption Blocked 15 | . . . . . . . . . . . . . . . . . . . . . . . . . . . . . . 15 . . . . Effects 432 | . 7 5 . . . . . 10 15 31 7 . 1 27 39 32 57 2 . . . . . . 88 34 8 4 . 11 22 27 5 . Message Errors 111 | . 3 1 . . . . . 4 2 7 1 . . 9 11 5 12 . . . . . . . 24 11 1 1 . 2 7 10 . . Matter Fused 109 | . . 1 . . . . . 1 3 10 1 . 1 5 10 8 15 . . . . . . . 17 11 3 2 . 4 6 8 3 . Heat Flow Errors 55 | . 2 2 . . . . . 2 2 4 2 . . 3 3 5 10 . . . . . . . 12 3 . . . 1 3 1 . . Energy Discharges 49 | . 1 1 . . . . . . 2 3 1 . . 4 2 7 7 2 . . . . . . 10 1 1 1 . 1 2 2 1 . Parts Rejected 4 | . . . . . . . . . . . . . . . . 1 1 . . . . . . . 2 . . . . . . . . . Parts Fused 7 | . . . . . . . . . 1 1 . . . . . . . . . . . . . . 1 . . . . 1 . 3 . . Data Loss (minor) 36 | . 1 . . . . . . . 1 3 1 . . 3 6 3 3 . . . . . . . 7 4 . . . 1 1 2 . . Data Loss (major) 13 | . . . . . . . . 2 . 1 . . . . 2 . 2 . . . . . . . 2 1 1 . . . 1 . 1 . Misfires 20 | . . . . . . . . 1 . 1 1 . . 1 3 1 2 . . . . . . . 5 2 1 . . . 1 1 . . Alerts 18 | . . . . . . . . . 1 1 . . . 2 2 1 5 . . . . . . . 3 1 1 . . 1 . . . . Misdirections 1 | . . . . . . . . . . . . . . . . . . . . . . . . . 1 . . . . . . . . . Weapon Failures 9 | . . . . . . . . . 3 . . . . . . 1 . . . . . . . . 4 . . . . . 1 . . . Overload Shots 8 | . . . . . . . . . . 1 5 . . 2 . . . . . . . . . . . . . . . . . . . . Overflow Damage 1853 | . 8 20 8 50 . 27 . 20 41 105 124 . . 8 9 . . 83 179 33 77 64 27 8 71 208 . . 79 343 230 . 20 11 Projectiles 1189 | . . . . . . . . . 39 12 78 . . 2 . . . 38 33 33 77 64 27 8 37 208 . . 33 315 154 . 20 11 Explosions 529 | . 8 20 8 50 . 27 . 20 . 15 . . . 6 . . . 45 146 . . . . . 34 . . . 46 28 76 . . . Melee 135 | . . . . . . . . . 2 78 46 . . . 9 . . . . . . . . . . . . . . . . . . . Knockbacks 2 | . . . . . . . . . . . 1 . . . 1 . . . . . . . . . . . . . . . . . . . Impact 2 | . . . . . . . . . . . 1 . . . 1 . . . . . . . . . . . . . . . . . . . Kinetic . | . . . . . . . . . . . . . . . . . . . . . . . . . . . . . . . . . . . Secondary . | . . . . . . . . . . . . . . . . . . . . . . . . . . . . . . . . . . . Self-Inflicted Damage 934 | . 39 30 18 80 . 43 . 4 . . 35 . . 22 . . . 127 90 . 59 . . . 190 45 . . 130 . 22 . . . Shots 32 | . 1 2 1 3 . 2 . 1 . . 1 . . 1 . . . 6 2 . 1 . . . 2 3 . . 5 . 1 . . . Rammed 14 | . 3 . 2 . . . 4 . 1 . 1 . . . 3 . . . . . . . . . . . . . . . . . . . Targets Rammed 22 | . 3 . 2 . . . 5 . 1 . 1 . . . 3 . . . . . 2 1 . . 1 1 . . . 2 . . . . Kicked 7 | . . . . . . . . . . . . . . . . . . . . . 2 1 . . 1 1 . . . 2 . . . . Crushed 1 | . . . . . . . 1 . . . . . . . . . . . . . . . . . . . . . . . . . . . Highest Temperature 354 | . 270 208 252 25 . 21 82 299 262 354 225 . . 349 315 276 300 220 78 18 . 7 18 . 270 217 1 . 296 263 298 208 96 110 Average Temperature 68 | . 99 70 69 9 . 11 29 78 50 98 40 . . 70 86 97 75 96 17 10 . 7 13 . 93 90 1 . 95 31 55 40 31 38 Received Heat Transfer 4866 | . 84 54 348 42 . 63 362 471 387 63 78 . . 228 48 65 141 108 160 243 36 62 98 27 873 12 21 . 515 186 51 . 8 32 Effects 8 | . 2 . 2 . . . . 2 1 . . . . . 1 . . . . . . . . . . . . . . . . . . . Energy Bleed 4 | . 2 . . . . . . . 1 . . . . . 1 . . . . . . . . . . . . . . . . . . . Interference 4 | . . . 2 . . . . 2 . . . . . . . . . . . . . . . . . . . . . . . . . . Siege Activations 9 | . . . . . . . . . . . . . . . . . . . . 2 . 2 1 . 2 . . . 1 . . . . 1 Total Turns 213 | . . . . . . . . . . . . . . . . . . . . 64 . 21 14 . 83 . . . 11 . . . . 20 Longest Duration 64 | . . . . . . . . . . . . . . . . . . . . 53 . 12 14 . 64 . . . 11 . . . . 20 Robots Corrupted 8 | . . . . . . . . . . . . . . . . . . . 8 . . . . . . . . . . . . . . . Combat Hostiles 8 | . . . . . . . . . . . . . . . . . . . 8 . . . . . . . . . . . . . . . Parts Fried 6 | . . . . . . . . . . . 4 . . . . 1 . . . . . . 1 . . . . . . . . . . . Impact Corruptions 3 | . . . . . . . . . . . 2 . . . 1 . . . . . . . . . . . . . . . . . . . Robots Melted 6 | . . . . . . . . . . 2 1 . . 1 . . . 1 . . . . . . . . . . . . 1 . . . Combat Hostiles 6 | . . . . . . . . . . 2 1 . . 1 . . . 1 . . . . . . . . . . . . 1 . . . Parts Melted 47 | . . . 2 . . . . . 2 8 6 . . 8 . . . 3 . . . . . 1 1 1 1 . 2 6 5 . . 1 Heat Transferred 30214 | . . . 2590 . . . . . 1731 2072 1136 . . 3713 . . . 2497 50 600 800 1411 925 850 1766 1275 175 . 900 4348 2300 . 550 525 Parts Sabotaged . | . . . . . . . . . . . . . . . . . . . . . . . . . . . . . . . . . . . Parts Stolen . | . . . . . . . . . . . . . . . . . . . . . . . . . . . . . . . . . . . Parts Stripped . | . . . . . . . . . . . . . . . . . . . . . . . . . . . . . . . . . . . Power Chain Reactions 2 | . . . . . . . . . . . . . . . . . . . 1 . . . . . . 1 . . . . . . . . Missiles Intercepted . | . . . . . . . . . . . . . . . . . . . . . . . . . . . . . . . . . . . Alert | -11 -10 -10 -9 -9 -9 -8 -8 -8 -8 -8 -7 -7 -7 -6 -6 -6 -6 -6 -6 -5 -5 -5 -5 -5 -5 -4 -4 -4 -3 -3 -3 -3 -2 -1 ------- Run | Jun Mat Min Mat Min Exi Min Mat Gar Mat Gar Fac Low Dat Pro Fac Low Low Zio Dee Pro Fac Ext Cet Arc Hub Fac Upp War Pro Res Arm Lab Res Acc Peak Influence 1043 | . 241 227 409 183 . 194 184 990 571 852 512 . . . 285 . . . . . 380 789 734 386 1043 749 . . . 1022 782 . 154 215 Initial 529 | . . 42 . 133 . . . 121 482 325 447 . . . 74 . . . . . 9 112 394 242 12 438 . . . 82 529 . . 92 Average 294 | . 109 89 245 86 . 18 59 568 499 643 275 . . . 146 . . . . . 164 226 569 250 468 521 . . . 257 506 . 72 115 Maximum Alert Level 3 | . 1 1 2 . . . . 3 2 3 2 . . . 1 . . . . . 1 3 3 1 3 3 . . . 3 3 . . 1 Low Security (%) 48 | 100 89 99 29 100 . 100 100 14 . . 33 . . . 79 . . . . . 63 53 . 55 30 4 . . . 59 . . 100 69 Level 1 22 | . 10 . 69 . . . . 6 12 12 40 . . . 20 . . . . . 36 29 8 44 24 26 . . . 14 31 . . 30 Level 2 18 | . . . . . . . . 51 87 48 26 . . . . . . . . . . 12 73 . 7 36 . . . 18 53 . . . Level 3 10 | . . . . . . . . 26 . 39 . . . . . . . . . . . 4 17 . 37 32 . . . 7 14 . . . Level 4 . | . . . . . . . . . . . . . . . . . . . . . . . . . . . . . . . . . . . Level 5 . | . . . . . . . . . . . . . . . . . . . . . . . . . . . . . . . . . . . High Security . | . . . . . . . . . . . . . . . . . . . . . . . . . . . . . . . . . . . Max Security . | . . . . . . . . . . . . . . . . . . . . . . . . . . . . . . . . . . . Squads Dispatched 76 | . 4 . 3 . . . 1 . 4 . 9 . . 2 9 . . . . . 3 4 . . 8 6 . . 1 13 6 . 1 2 Investigation 10 | . 3 . 1 . . . . . . . . . . 2 . . . . . . . 1 . . 1 . . . 1 . 1 . . . Extermination 31 | . . . . . . . . . . . 3 . . . 6 . . . . . 2 . . . 2 6 . . . 7 3 . 1 1 Reinforcement 27 | . 1 . 2 . . . 1 . 3 . 6 . . . 3 . . . . . . 2 . . 4 . . . . 4 . . . 1 Assault 8 | . . . . . . . . . 1 . . . . . . . . . . . 1 1 . . 1 . . . . 2 2 . . . Garrison . | . . . . . . . . . . . . . . . . . . . . . . . . . . . . . . . . . . . Intercept . | . . . . . . . . . . . . . . . . . . . . . . . . . . . . . . . . . . . Searches Triggered . | . . . . . . . . . . . . . . . . . . . . . . . . . . . . . . . . . . . Data Miner Redirects 4 | . . . . . . . . . . . . . . . . . . . . . . . . . 1 . . . . 2 1 . . . Construction Impeded 3 | . . . . . . . . . . . . . . . 1 . . . . . . 1 . . 1 . . . . . . . . . Haulers Reinforced 1 | . . . . . . . . . . . . . . . . . . . . . . . . . 1 . . . . . . . . . Active Scanning Responses . | . . . . . . . . . . . . . . . . . . . . . . . . . . . . . . . . . . . Cargo Convoy Interrupts 1 | . . . . . . . . . . . . . . . . . . . . . . . . . . . . . . 1 . . . . Stealth | -11 -10 -10 -9 -9 -9 -8 -8 -8 -8 -8 -7 -7 -7 -6 -6 -6 -6 -6 -6 -5 -5 -5 -5 -5 -5 -4 -4 -4 -3 -3 -3 -3 -2 -1 --------- Run | Jun Mat Min Mat Min Exi Min Mat Gar Mat Gar Fac Low Dat Pro Fac Low Low Zio Dee Pro Fac Ext Cet Arc Hub Fac Upp War Pro Res Arm Lab Res Acc Distress Signals 19 | . 1 . 1 . . . 2 . 2 . . . . 2 1 . . . . . 1 1 2 . 1 2 . . . 1 . . 1 1 Communications Jammed 82 | . . . . . . . . . . . . . . . . . . . . . 2 . . . 21 13 . . . 12 26 . . 8 Distress Signals 76 | . . . . . . . . . . . . . . . . . . . . . 1 . . . 18 13 . . . 10 26 . . 8 Times Spotted 697 | . 22 8 44 7 . 7 24 23 22 15 18 . . 33 25 10 15 69 53 11 13 31 18 6 46 31 4 . 29 59 35 . 8 11 Peak Tracking Total 37 | . 4 3 5 3 . 3 4 7 5 5 4 . . 5 4 4 4 5 37 5 4 5 5 1 11 6 4 . 9 5 8 . 3 5 Tactical Retreats 39 | . 1 1 3 . . . 2 3 1 2 . . . . . . 1 10 . 1 . 2 . . 6 . . . 1 1 . . 1 3 Traps | -11 -10 -10 -9 -9 -9 -8 -8 -8 -8 -8 -7 -7 -7 -6 -6 -6 -6 -6 -6 -5 -5 -5 -5 -5 -5 -4 -4 -4 -3 -3 -3 -3 -2 -1 ------- Run | Jun Mat Min Mat Min Exi Min Mat Gar Mat Gar Fac Low Dat Pro Fac Low Low Zio Dee Pro Fac Ext Cet Arc Hub Fac Upp War Pro Res Arm Lab Res Acc Traps Triggered 30 | . 2 . 4 . . . . 1 . 3 2 . . . 2 . . . . . . 2 . . 5 4 . 1 . 2 . . 2 . Indirectly 1 | . . . . . . . . . . . . . . . . . . . . . . . . . 1 . . . . . . . . . Trap Hack Attempts . | . . . . . . . . . . . . . . . . . . . . . . . . . . . . . . . . . . . Triggered . | . . . . . . . . . . . . . . . . . . . . . . . . . . . . . . . . . . . Disarmed . | . . . . . . . . . . . . . . . . . . . . . . . . . . . . . . . . . . . Reprogrammed . | . . . . . . . . . . . . . . . . . . . . . . . . . . . . . . . . . . . Reused . | . . . . . . . . . . . . . . . . . . . . . . . . . . . . . . . . . . . Traps Extracted . | . . . . . . . . . . . . . . . . . . . . . . . . . . . . . . . . . . . Installed . | . . . . . . . . . . . . . . . . . . . . . . . . . . . . . . . . . . . Triggered 3 | . . . . . . . . . . . . . . . . 1 . . . . . . . . . . . . . 2 . . . . Most Traps Carried 2 | . . . . . . . . . . . . . . . . . 2 . . . . . . . . . . . . . . . . . Machines | -11 -10 -10 -9 -9 -9 -8 -8 -8 -8 -8 -7 -7 -7 -6 -6 -6 -6 -6 -6 -5 -5 -5 -5 -5 -5 -4 -4 -4 -3 -3 -3 -3 -2 -1 ---------- Run | Jun Mat Min Mat Min Exi Min Mat Gar Mat Gar Fac Low Dat Pro Fac Low Low Zio Dee Pro Fac Ext Cet Arc Hub Fac Upp War Pro Res Arm Lab Res Acc Machines Disabled 76 | . 1 . 2 1 . . . 2 1 2 1 . . 4 2 . . 4 3 . 6 1 3 1 15 11 . . 4 1 5 5 . 1 Max in Single Turn 6 | . 1 . 1 1 . . . 1 1 1 1 . . 1 1 . . 1 1 . 4 . 1 1 5 6 . . 1 1 1 1 . 1 Garrison Access 8 | . . . . . . . . . . . . . . . . . . . . . 1 . . . 2 1 . . . 2 . . . 2 Garrison Relay 3 | . . . . . . . . 2 . 1 . . . . . . . . . . . . . . . . . . . . . . . . Network Hub 4 | . . . . . . . . . . . . . . . . . . . . . . . . . 4 . . . . . . . . . Machines Repaired . | . . . . . . . . . . . . . . . . . . . . . . . . . . . . . . . . . . . Machines Sabotaged . | . . . . . . . . . . . . . . . . . . . . . . . . . . . . . . . . . . . Overloaded Fab Kills . | . . . . . . . . . . . . . . . . . . . . . . . . . . . . . . . . . . . Hacking | -11 -10 -10 -9 -9 -9 -8 -8 -8 -8 -8 -7 -7 -7 -6 -6 -6 -6 -6 -6 -5 -5 -5 -5 -5 -5 -4 -4 -4 -3 -3 -3 -3 -2 -1 --------- Run | Jun Mat Min Mat Min Exi Min Mat Gar Mat Gar Fac Low Dat Pro Fac Low Low Zio Dee Pro Fac Ext Cet Arc Hub Fac Upp War Pro Res Arm Lab Res Acc Machines Accessed 80 | . 10 . 4 . 2 . 7 1 2 1 4 . 3 2 5 . 1 . . . 4 7 1 . 8 4 . . 1 7 4 . . 2 Terminals 57 | . 8 . 4 . . . 6 1 . 1 4 . . 1 4 . . . . . 3 7 1 . 6 2 . . 1 4 4 . . . Fabricators 2 | . . . . . . . . . . . . . . 1 . . . . . . . . . . . 1 . . . . . . . . Repair Stations . | . . . . . . . . . . . . . . . . . . . . . . . . . . . . . . . . . . . Recycling Units 5 | . 2 . . . . . . . 1 . . . . . 1 . . . . . . . . . . . . . . 1 . . . . Scanalyzers . | . . . . . . . . . . . . . . . . . . . . . . . . . . . . . . . . . . . Garrison Access 10 | . . . . . . . 1 . 1 . . . . . . . . . . . 1 . . . 2 1 . . . 2 . . . 2 Total Hacks 229 | . 16 . 14 . 2 . 19 1 3 4 8 . 23 7 17 . 1 . . . 9 19 1 . 22 10 . . 8 26 17 . . 2 Successful 93 | . 4 . 3 . 2 . 8 1 2 . 3 . 23 6 2 . 1 . . . 2 6 . . 8 2 . . 8 6 4 . . 2 Failed 135 | . 12 . 11 . . . 10 . 1 4 5 . . 1 15 . . . . . 7 13 1 . 14 8 . . . 20 13 . . . Catastrophic 38 | . 1 . 2 . . . 3 . 1 . 1 . . . 2 . . . . . 2 4 1 . 6 3 . . . 7 5 . . . Database Lockouts 1 | . . . . . . . 1 . . . . . . . . . . . . . . . . . . . . . . . . . . . Manual 126 | . 16 . 12 . 1 . 13 1 . . 3 . . . 14 . . 4 . . 8 16 1 . 11 8 . . . 5 13 . . . Terminals 173 | . 14 . 14 . . . 16 1 . 4 8 . . 4 11 . . . . . 8 19 1 . 19 8 . . 8 21 17 . . . Fabricators 4 | . . . . . . . . . . . . . . 3 . . . . . . . . . . . 1 . . . . . . . . Repair Stations . | . . . . . . . . . . . . . . . . . . . . . . . . . . . . . . . . . . . Recycling Units 13 | . 2 . . . . . . . 2 . . . . . 6 . . . . . . . . . . . . . . 3 . . . . Scanalyzers . | . . . . . . . . . . . . . . . . . . . . . . . . . . . . . . . . . . . Garrison Access 13 | . . . . . . . 3 . 1 . . . . . . . . . . . 1 . . . 3 1 . . . 2 . . . 2 Terminal Hacks 71 | . 2 . 3 . 2 . 6 1 . . 3 . 23 4 1 . 1 . . . 1 3 . . 5 1 . . 8 3 4 . . . Record 19 | . . . . . 1 . . . . . . . 6 4 . . . . . . . . . . . . . . 8 . . . . . Part Schematic 10 | . . . . . . . . . . . . . 10 . . . . . . . . . . . . . . . . . . . . . Robot Schematic 4 | . . . . . . . . . . . . . 4 . . . . . . . . . . . . . . . . . . . . . Robot Analysis 3 | . 1 . . . . . 1 . . . . . . . . . . . . . . . . . 1 . . . . . . . . . Prototype ID Bank 5 | . . . . . . . 2 . . . . . 3 . . . . . . . . . . . . . . . . . . . . . Open Door 2 | . . . . . . . . . . . . . . . . . 1 . . . . . . . . . . . . . 1 . . . Level Access Points 1 | . . . . . . . . . . . . . . . . . . . . . . . . . . . . . . 1 . . . . Branch Access Points 6 | . . . . . . . 1 . . . 1 . . . 1 . . . . . 1 . . . . 1 . . . 1 . . . . Terminal Index 2 | . . . . . . . . . . . . . . . . . . . . . . . . . 1 . . . . 1 . . . . Unreport Threat 11 | . . . 2 . . . 1 . . . 2 . . . . . . . . . . 2 . . 2 . . . . . 2 . . . Locate Traps 3 | . 1 . . . . . . . . . . . . . . . . . . . . 1 . . . . . . . . 1 . . . Hauler Manifests 1 | . . . . . . . 1 . . . . . . . . . . . . . . . . . . . . . . . . . . . Zone Layout 2 | . . . 1 . . . . . . . . . . . . . . . . . . . . . 1 . . . . . . . . . Garrison Registry 1 | . . . . . . . . 1 . . . . . . . . . . . . . . . . . . . . . . . . . . Derelict Proto ID Bank 1 | . . . . . 1 . . . . . . . . . . . . . . . . . . . . . . . . . . . . . Fabricator Hacks 2 | . . . . . . . . . . . . . . 2 . . . . . . . . . . . . . . . . . . . . Load Schematic 1 | . . . . . . . . . . . . . . 1 . . . . . . . . . . . . . . . . . . . . Build 1 | . . . . . . . . . . . . . . 1 . . . . . . . . . . . . . . . . . . . . Repair Station Hacks . | . . . . . . . . . . . . . . . . . . . . . . . . . . . . . . . . . . . Recycling Unit Hacks 1 | . . . . . . . . . 1 . . . . . . . . . . . . . . . . . . . . . . . . . Retrieve Components 1 | . . . . . . . . . 1 . . . . . . . . . . . . . . . . . . . . . . . . . Scanalyzer . | . . . . . . . . . . . . . . . . . . . . . . . . . . . . . . . . . . . Garrison Access Hacks 11 | . . . . . . . 1 . 1 . . . . . . . . . . . 1 . . . 3 1 . . . 2 . . . 2 Unlock Access 2 | . . . . . . . 1 . 1 . . . . . . . . . . . . . . . . . . . . . . . . . Seal Access 7 | . . . . . . . . . . . . . . . . . . . . . . . . . 2 1 . . . 2 . . . 2 Coupler Status 2 | . . . . . . . . . . . . . . . . . . . . . 1 . . . 1 . . . . . . . . . Unauthorized Hacks 8 | . 2 . . . . . 1 . . . . . . . 1 . . . . . . 3 . . . . . . . 1 . . . . Terminals 5 | . . . . . . . 1 . . . . . . . . . . . . . . 3 . . . . . . . 1 . . . . Assimilate 1 | . . . . . . . 1 . . . . . . . . . . . . . . . . . . . . . . . . . . . Botnet 4 | . . . . . . . . . . . . . . . . . . . . . . 3 . . . . . . . 1 . . . . Fabricators . | . . . . . . . . . . . . . . . . . . . . . . . . . . . . . . . . . . . Repair Stations . | . . . . . . . . . . . . . . . . . . . . . . . . . . . . . . . . . . . Recycling Units 3 | . 2 . . . . . . . . . . . . . 1 . . . . . . . . . . . . . . . . . . . Reject 1 | . . . . . . . . . . . . . . . 1 . . . . . . . . . . . . . . . . . . . Tunnel 2 | . 2 . . . . . . . . . . . . . . . . . . . . . . . . . . . . . . . . . Scanalyzers . | . . . . . . . . . . . . . . . . . . . . . . . . . . . . . . . . . . . Garrison Access . | . . . . . . . . . . . . . . . . . . . . . . . . . . . . . . . . . . . Data Cores Recovered 2 | . . . . . . . 1 . . . 1 . . . . . . . . . . . . . . . . . . . . . . . Used 2 | . . . . . . . 1 . . . 1 . . . . . . . . . . . . . . . . . . . . . . . Hacking Detections 58 | . 8 . 4 . . . 7 1 2 1 4 . . 2 5 . . . . . 3 5 1 . 4 3 . . 1 5 2 . . . Full Trace Events 5 | . . . . . . . 1 . . . . . . 2 . . . . . . . . . . . . . . 1 . 1 . . . Feedback Events . | . . . . . . . . . . . . . . . . . . . . . . . . . . . . . . . . . . . Feedback Blocked . | . . . . . . . . . . . . . . . . . . . . . . . . . . . . . . . . . . . Robot Schematics Acquired 4 | . . . . . . . . . . . . . 4 . . . . . . . . . . . . . . . . . . . . . Robots Built . | . . . . . . . . . . . . . . . . . . . . . . . . . . . . . . . . . . . Authchips . | . . . . . . . . . . . . . . . . . . . . . . . . . . . . . . . . . . . Time . | . . . . . . . . . . . . . . . . . . . . . . . . . . . . . . . . . . . Total Robot Build Rating . | . . . . . . . . . . . . . . . . . . . . . . . . . . . . . . . . . . . Part Schematics Acquired 10 | . . . . . . . . . . . . . 10 . . . . . . . . . . . . . . . . . . . . . Parts Built 1 | . . . . . . . . . . . . . . 1 . . . . . . . . . . . . . . . . . . . . Authchips . | . . . . . . . . . . . . . . . . . . . . . . . . . . . . . . . . . . . Time 84 | . . . . . . . . . . . . . . 84 . . . . . . . . . . . . . . . . . . . . Total Part Build Rating 6 | . . . . . . . . . . . . . . 6 . . . . . . . . . . . . . . . . . . . . Parts Repaired . | . . . . . . . . . . . . . . . . . . . . . . . . . . . . . . . . . . . Time . | . . . . . . . . . . . . . . . . . . . . . . . . . . . . . . . . . . . Parts Recycled . | . . . . . . . . . . . . . . . . . . . . . . . . . . . . . . . . . . . Recycled Matter . | . . . . . . . . . . . . . . . . . . . . . . . . . . . . . . . . . . . Retrieved Matter . | . . . . . . . . . . . . . . . . . . . . . . . . . . . . . . . . . . . Retrieved Components . | . . . . . . . . . . . . . . . . . . . . . . . . . . . . . . . . . . . Parts Scanalyzed . | . . . . . . . . . . . . . . . . . . . . . . . . . . . . . . . . . . . Part Schematics Acquired . | . . . . . . . . . . . . . . . . . . . . . . . . . . . . . . . . . . . Parts Damaged . | . . . . . . . . . . . . . . . . . . . . . . . . . . . . . . . . . . . Bothacking | -11 -10 -10 -9 -9 -9 -8 -8 -8 -8 -8 -7 -7 -7 -6 -6 -6 -6 -6 -6 -5 -5 -5 -5 -5 -5 -4 -4 -4 -3 -3 -3 -3 -2 -1 ------------ Run | Jun Mat Min Mat Min Exi Min Mat Gar Mat Gar Fac Low Dat Pro Fac Low Low Zio Dee Pro Fac Ext Cet Arc Hub Fac Upp War Pro Res Arm Lab Res Acc Used RIF Installer 2 | . . . . . . . . 1 . 1 . . . . . . . . . . . . . . . . . . . . . . . . Hotswap 1 | . . . . . . . . . . 1 . . . . . . . . . . . . . . . . . . . . . . . . Robots Hacked 17 | . . . . . . . . . . . . . . . . . . . . . 3 . . . 6 5 . . 1 2 . . . . Non-combat . | . . . . . . . . . . . . . . . . . . . . . . . . . . . . . . . . . . . Combat 17 | . . . . . . . . . . . . . . . . . . . . . 3 . . . 6 5 . . 1 2 . . . . Robot Hacks Applied 17 | . . . . . . . . . . . . . . . . . . . . . 3 . . . 6 5 . . 1 2 . . . . overwrite_iff 3 | . . . . . . . . . . . . . . . . . . . . . . . . . . 1 . . . 2 . . . . formatsys_high 14 | . . . . . . . . . . . . . . . . . . . . . 3 . . . 6 4 . . 1 . . . . . Relay Couplers Released 25 | . . . . . . . . 11 . 6 . . . . . . . . . . 2 . . . . 4 . . . 2 . . . . Machine Destruction 15 | . . . . . . . . 8 . 3 . . . . . . . . . . 2 . . . . . . . . 2 . . . . Programmers 10 | . . . . . . . . 3 . 3 . . . . . . . . . . . . . . . 4 . . . . . . . . Attached 4 | . . . . . . . . . . . . . . 1 . . . . . . 1 . . . 2 . . . . . . . . . Fabnet Peak Effective % . | . . . . . . . . . . . . . . . . . . . . . . . . . . . . . . . . . . . Robots Rewired 27 | . . . . . . . . . . . . . . 12 . . . . . . . 6 . . . . . . . . 9 . . . Allies Hacked 4 | . . . . . . . . . . . . . . . . . . . . . . 1 . . . . . . 2 . 1 . . . Hacks Repelled . | . . . . . . . . . . . . . . . . . . . . . . . . . . . . . . . . . . . Allies | -11 -10 -10 -9 -9 -9 -8 -8 -8 -8 -8 -7 -7 -7 -6 -6 -6 -6 -6 -6 -5 -5 -5 -5 -5 -5 -4 -4 -4 -3 -3 -3 -3 -2 -1 -------- Run | Jun Mat Min Mat Min Exi Min Mat Gar Mat Gar Fac Low Dat Pro Fac Low Low Zio Dee Pro Fac Ext Cet Arc Hub Fac Upp War Pro Res Arm Lab Res Acc Total Allies 72 | . . 6 . . . . 1 . . . 3 . . 13 . . . . . . 3 18 . . 6 8 . . 3 2 9 . . . Largest Group 10 | . . 5 4 . . . 1 . . . 3 . . 6 5 . . . . . 2 10 8 . 2 3 3 3 2 2 4 . . . Highest-Rated Group 429 | . . 105 74 . . . 26 . . . 93 . . 220 174 . . . . . 108 429 342 . 108 138 133 133 140 164 192 . . . Highest-Rated Ally 159 | . . 31 31 . . . 26 . . . 31 . . 96 46 . . . . . 54 159 146 . 54 54 46 46 82 82 48 . . . Total Orders 12 | . . . . . . . . . . . . . . . . . . 12 . . . . . . . . . . . . . . . . RETURN 12 | . . . . . . . . . . . . . . . . . . 12 . . . . . . . . . . . . . . . . Ally Attacks 562 | . . 5 28 . . . . . . . 30 . . 38 34 . . 148 . . 3 143 55 . 12 28 12 . 11 1 14 . . . Total Damage 14058 | . . 58 393 . . . . . . . 494 . . 945 1224 . . 3000 . . 97 4131 1591 . 99 523 433 . 445 54 571 . . . Kills 92 | . . 3 6 . . . . . . . 3 . . 5 13 . . 8 . . . 32 9 . 1 3 2 . 5 . 2 . . . Allies Corrupted 3 | . . . . . . . . . . . . . . 1 . . . . . . . . 1 . . . . . . . 1 . . . Allies Melted 1 | . . . . . . . . . . . . . . . . . . . . . . . . . . . . . . . 1 . . . Intel | -11 -10 -10 -9 -9 -9 -8 -8 -8 -8 -8 -7 -7 -7 -6 -6 -6 -6 -6 -6 -5 -5 -5 -5 -5 -5 -4 -4 -4 -3 -3 -3 -3 -2 -1 ------- Run | Jun Mat Min Mat Min Exi Min Mat Gar Mat Gar Fac Low Dat Pro Fac Low Low Zio Dee Pro Fac Ext Cet Arc Hub Fac Upp War Pro Res Arm Lab Res Acc Robot Analysis Total 3 | . 1 . . . . . 1 . . . . . . . . . . . . . . . . . 1 . . . . . . . . . Derelict Logs Recovered 14 | . . 3 . 2 . . . . . . . . . 2 . 2 1 2 . 1 . . . . . . 1 . . . . . . . Drone Launches 15 | . . . . . . . . . . . . . . . . . . 15 . . . . . . . . . . . . . . . . Drone Recoveries 15 | . . . . . . . . . . . . . . . . . . 15 . . . . . . . . . . . . . . . . Exploration | -11 -10 -10 -9 -9 -9 -8 -8 -8 -8 -8 -7 -7 -7 -6 -6 -6 -6 -6 -6 -5 -5 -5 -5 -5 -5 -4 -4 -4 -3 -3 -3 -3 -2 -1 ------------- Run | Jun Mat Min Mat Min Exi Min Mat Gar Mat Gar Fac Low Dat Pro Fac Low Low Zio Dee Pro Fac Ext Cet Arc Hub Fac Upp War Pro Res Arm Lab Res Acc Turns Passed 49024 | 63 1237 857 2602 1081 566 879 1894 1430 895 1421 1787 126 153 2160 1870 932 1620 2930 4051 1071 882 1614 488 893 2354 2239 305 750 1684 3612 1620 1480 616 862 Spaces Moved 20468 | 35 649 469 1245 515 351 505 911 659 398 646 998 75 96 973 998 542 894 976 1394 447 330 665 187 114 672 922 104 84 726 1441 604 222 232 389 Core 3 | 3 . . . . . . . . . . . . . . . . . . . . . . . . . . . . . . . . . . Treads 12865 | 32 649 469 1245 515 351 505 911 659 398 646 998 75 96 973 998 542 894 976 749 . . . 33 . 131 . . . 6 . . . . 14 Legs 7600 | . . . . . . . . . . . . . . . . . . . 645 447 330 665 154 114 541 922 104 84 720 1441 604 222 232 375 Wheels . | . . . . . . . . . . . . . . . . . . . . . . . . . . . . . . . . . . . Hover . | . . . . . . . . . . . . . . . . . . . . . . . . . . . . . . . . . . . Flight . | . . . . . . . . . . . . . . . . . . . . . . . . . . . . . . . . . . . Fastest Speed 50 | 50 160 160 160 160 160 160 160 165 158 158 158 158 158 155 156 162 162 160 166 180 180 210 210 180 180 180 235 210 210 180 210 210 210 179 Average Speed 184 | 150 160 160 160 160 160 160 169 168 159 160 158 158 158 157 160 162 162 221 220 198 201 210 215 204 212 208 282 237 210 209 210 210 226 185 Slowest Speed 360 | 160 160 160 240 160 160 160 170 170 165 161 158 158 158 158 243 162 162 249 246 210 210 210 240 210 270 235 285 285 360 210 210 240 240 245 Overloaded Moves . | . . . . . . . . . . . . . . . . . . . . . . . . . . . . . . . . . . . Propulsion Burnouts . | . . . . . . . . . . . . . . . . . . . . . . . . . . . . . . . . . . . Robots Hopped 1 | . . . . . . . . . . . . . . . . . . . . . . . . . . . . . . . 1 . . . Cave-ins Triggered 2 | . . . . . . . . . 2 . . . . . . . . . . . . . . . . . . . . . . . . . Teleports 1 | . . . . . . . . . . . . . . . . . . . . . . . . . . . . . . . . 1 . . Exploration Rate (%) 58 | 5 97 94 94 98 69 90 58 52 41 63 31 8 69 85 26 74 89 82 83 68 9 80 67 75 91 21 22 13 89 42 45 93 5 10 Regions Visited 34 Branch Regions 21 Pre-discovered Areas 8 | . 2 2 . 2 1 . . . . . . . 1 . . . . . . . . . . . . . . . . . . . . . Known Exits Taken 13 | . . . . . . 1 1 . 1 . 1 . . . 1 . . . . . 1 . . . 1 1 1 1 . 1 . 1 1 . Unknown Exits Taken 19 | 1 1 1 1 1 1 . . . . . . 1 1 1 . 1 1 1 1 1 . 1 1 1 . . . . 1 . 1 . . . Scrap Searched 24 | . . 2 . 1 . 2 . . . . . . . 2 . 3 5 1 . 4 . . . . . . . . 4 . . . . . Spaces Dug 311 | . . 8 14 . . 13 . 7 3 4 12 . . 7 4 11 11 1 16 7 2 6 . . 13 84 1 . 24 28 16 . 3 16 Terrain Destroyed 1529 | . 9 28 26 34 . 54 . 29 19 7 36 . . 44 5 11 33 119 57 79 46 18 5 7 408 116 4 . 137 119 49 . 8 22 Melee 20 | . . . . . . . . 7 . 4 3 . . 2 3 . . . 1 . . . . . . . . . . . . . . . Projectile 342 | . . . . . . . . . 19 . 14 . . 6 2 . 14 5 4 17 8 18 5 7 33 27 4 . 37 73 19 . 8 22 AOE 1165 | . 9 28 26 34 . 54 . 21 . 3 19 . . 36 . 11 19 113 52 62 38 . . . 375 89 . . 100 46 30 . . . Terrain Rammed . | . . . . . . . . . . . . . . . . . . . . . . . . . . . . . . . . . . . Walls Destroyed . | . . . . . . . . . . . . . . . . . . . . . . . . . . . . . . . . . . . Machines Disabled . | . . . . . . . . . . . . . . . . . . . . . . . . . . . . . . . . . . . Actions | -11 -10 -10 -9 -9 -9 -8 -8 -8 -8 -8 -7 -7 -7 -6 -6 -6 -6 -6 -6 -5 -5 -5 -5 -5 -5 -4 -4 -4 -3 -3 -3 -3 -2 -1 --------- Run | Jun Mat Min Mat Min Exi Min Mat Gar Mat Gar Fac Low Dat Pro Fac Low Low Zio Dee Pro Fac Ext Cet Arc Hub Fac Upp War Pro Res Arm Lab Res Acc Total 29104 | 42 758 556 1628 743 357 537 1146 845 555 908 1132 83 98 1414 1167 569 980 1391 2211 585 513 803 233 740 1434 1158 108 638 814 1915 954 1239 323 527 Wait 5516 | . 46 69 150 208 . . 112 67 68 184 61 1 . 269 64 5 23 37 620 100 95 46 7 566 595 135 . 548 9 201 150 969 52 59 Move 20431 | 34 648 468 1244 514 350 504 911 658 396 645 997 74 95 972 997 541 893 975 1393 446 329 664 186 113 671 921 103 83 725 1440 601 221 231 388 Hop 1 | . . . . . . . . . . . . . . . . . . . . . . . . . . . . . . . 1 . . . Pick Up 249 | 2 6 2 23 . 4 3 11 2 5 . 13 1 . 11 10 1 2 16 30 1 19 1 4 20 7 11 . . 8 16 7 4 2 7 Fast Attach 112 | 6 2 1 13 1 . . 4 1 4 . . . 1 1 7 1 1 14 7 . 3 2 3 1 4 5 . . 3 5 10 5 . 7 Attach 95 | . . 2 3 2 . 1 1 3 1 4 3 3 . 8 9 . 3 13 8 1 5 . 1 3 6 . . . 2 7 1 2 2 1 Detach 133 | . 1 1 2 . . . . . . 1 . 1 1 . 4 . 1 13 18 2 9 2 1 11 12 8 . 6 10 15 3 8 1 2 Swap 247 | . 4 1 26 1 . 4 7 18 7 9 8 2 . 19 15 8 12 20 21 3 2 4 1 . 13 9 1 . 8 12 9 1 2 . Drop 231 | . 2 . 37 . 3 1 18 4 14 1 6 1 1 5 11 1 3 21 26 . 5 2 6 5 7 1 . . 7 13 18 4 . 8 Fire 1876 | . 46 12 128 17 . 24 77 81 43 40 39 . . 112 44 12 42 282 68 32 44 39 23 21 100 48 4 . 40 201 146 25 33 53 Melee 110 | . . . . . . . . 10 14 24 4 . . 3 3 . . . 20 . . . . . 16 10 . . 1 3 . . . 2 Ram . | . . . . . . . . . . . . . . . . . . . . . . . . . . . . . . . . . . . Kick 7 | . . . . . . . . . . . . . . . . . . . . . 2 1 . . 1 1 . . . 2 . . . . Crush 15 | . 3 . 2 . . . 5 . 1 . 1 . . . 3 . . . . . . . . . . . . . . . . . . . Escape Stasis 18 | . . . . . . . . 1 2 . . . . . . . . . . . . 10 . . . 5 . . . . . . . . Rewire 63 | . . . . . . . . . . . . . . 14 . . . . . . . 32 1 . 2 4 . 1 1 . 8 . . . Trap . | . . . . . . . . . . . . . . . . . . . . . . . . . . . . . . . . . . . Miscellaneous . | . . . . . . . . . . . . . . . . . . . . . . . . . . . . . . . . . . . Route ------- -11/Junkyard -10/Materials (discovered 5 exits: *Mat x3 / [*Min x2]) -10/Mines (discovered 2 exits: *Mat x2) -9/Materials (discovered 5 exits: *Mat x3 / [*Min] / [*Sto]) -9/Mines (discovered 3 exits: *Mat x2 / *Exi) -9/Exiles -8/Mines (discovered 2 exits: *Mat x2) -8/Materials (discovered 2 exits: *Fac / Gar) -8/Garrison (discovered 3 exits: *Mat x3) -8/Materials (discovered 2 exits: *Fac / Gar) -8/Garrison (discovered 3 exits: *Fac x3) -7/Factory (discovered 5 exits: *Fac x3 / *Low x2) -7/Lower Caves -7/Data Miner -6/Proximity Caves -6/Factory (discovered 2 exits: *Low x2) -6/Lower Caves -6/Lower Caves (discovered 2 exits: *Fac / *Zio) -6/Zion (discovered 2 exits: [*Dee] / [*Pro]) -6/Deep Caves -5/Proximity Caves -5/Factory (discovered 8 exits: *Fac x4 / Upp x2 / *Ext x2) -5/Extension (discovered 3 exits: *Fac x2 / *Cet) -5/Cetus (discovered 2 exits: *Fac / [*Arc]) -5/Archives (discovered 2 exits: *Fac / *Hub) -5/Hub_04(d) (discovered 4 exits: *Fac x4) -4/Factory (discovered 2 exits: *Upp x2) -4/Upper Caves -4/Warlord -3/Proximity Caves -3/Research (discovered 6 exits: *Res x3 / *Arm / Qua x2) -3/Armory -3/Lab -2/Research -1/Access To Epsilon Eridani History --------- Turn | Location | Event 4 | -11/Junkyard | Discovered new exit (range 16) 64 | -11/Junkyard | Entered Materials 104 | -10/Materials | Discovered new exit (range 15) 169 | -10/Materials | Discovered new exit (range 13) 314 | -10/Materials | Build established: Mutant 528 | -10/Materials | Discovered new exit (range 16) 1015 | -10/Materials | Discovered new exit (range 4) 1121 | -10/Materials | Discovered new exit (range 8) 1301 | -10/Materials | Entered Mines 1306 | -10/Mines | Met a Derelict bent on vengeance 1423 | -10/Mines | Learned location of Storage (-9) 1496 | -10/Mines | Assisted by bots powering up and referring to "LRC-V3" 1506 | -10/Mines | Learned 2 Materials zone layouts 1728 | -10/Mines | Received a Mining Laser from a helpful Derelict 2050 | -10/Mines | Learned location of Zion (-6) 2064 | -10/Mines | Discovered new exit (range 11) 2120 | -10/Mines | Discovered new exit (range 6) 2158 | -10/Mines | Entered Materials 2158 | -9/Materials | Accompanied by 4 allies 2158 | -9/Materials | Evolved 2 slots: Propulsion x1, Utility x1 2163 | -9/Materials | Led the pair of lost Derelicts to an unsafe place 2851 | -9/Materials | Build established: Scavenger-Mutant 3248 | -9/Materials | Discovered new exit (range 16) 3553 | -9/Materials | Discovered new exit (range 16) 3926 | -9/Materials | Discovered new exit (range 16) 3955 | -9/Materials | Build established: Mutant 4483 | -9/Materials | Discovered new exit (range 16) 4600 | -9/Materials | Discovered new exit (range 16) 4760 | -9/Materials | Entered Mines 5079 | -9/Mines | Assembled infested the area 5084 | -9/Mines | Assisted by a Guerilla fighting off Assembled 5512 | -9/Mines | Discovered new exit (range 8) 5615 | -9/Mines | Deemed a non-threat by the Exiles lab entrance 5615 | -9/Mines | Discovered new exit (range 5) 5675 | -9/Mines | Core integrity fell below 50% 5705 | -9/Mines | Found a hidden stash of uninstalled traps 5737 | -9/Mines | Identified exit to Materials 5841 | -9/Mines | Entered Exiles 5881 | -9/Exiles | Met 8R-AWN 5905 | -9/Exiles | Met EX-HEX 5982 | -9/Exiles | Met EX-DEC 6067 | -9/Exiles | Discovered new exit (range 14) 6182 | -9/Exiles | Met EX-BIN 6200 | -9/Exiles | Aligned with FarCom system 6201 | -9/Exiles | Given EX-Vault access code 6238 | -9/Exiles | Opened EX-Vault 6251 | -9/Exiles | Found 0b10 Alert Chip 6286 | -9/Exiles | Warned to stay clear of 0b10 Research branches 6407 | -9/Exiles | Left Exiles lab with 0b10 Alert Chip 6407 | -9/Exiles | Entered Mines 6541 | -8/Mines | Discovered exit to Materials (range 5) 6925 | -8/Mines | Discovered exit to Materials (range 7) 7286 | -8/Mines | Entered Materials 7286 | -8/Materials | Evolved 2 slots: Propulsion x1, Utility x1 8146 | -8/Materials | Central database locked down 8917 | -8/Materials | Discovered new exit (range 16) 9180 | -8/Materials | Identified exit to Garrison 9180 | -8/Materials | Entered Garrison 9425 | -8/Garrison | Triggered checkpoint 9528 | -8/Garrison | Triggered checkpoint 9540 | -8/Garrison | Garrison Relay disabled 9611 | -8/Garrison | Discovered new exit (range 10) 9645 | -8/Garrison | Triggered checkpoint 9677 | -8/Garrison | Discovered new exit (range 14) 9677 | -8/Garrison | Discovered new exit (range 88) 9677 | -8/Garrison | Discovered new exit (range 64) 9929 | -8/Garrison | Spotted B-75 Beast 10060 | -8/Garrison | Destroyed B-75 Beast 10230 | -8/Garrison | Triggered checkpoint 10310 | -8/Garrison | Triggered checkpoint 10438 | -8/Garrison | Installed Relay Interface Framework 10527 | -8/Garrison | Garrison Relay disabled 10610 | -8/Garrison | Entered Materials 10952 | -8/Materials | Crushed by falling debris 10955 | -8/Materials | Crushed by falling debris 10956 | -8/Materials | Core integrity fell below 50% 11065 | -8/Materials | Discovered new exit (range 16) 11410 | -8/Materials | First assault squad dispatched 11505 | -8/Materials | Identified exit to Garrison 11505 | -8/Materials | Entered Garrison 11608 | -8/Garrison | Triggered checkpoint 11624 | -8/Garrison | Garrison Relay disabled 11671 | -8/Garrison | Core integrity fell below 20% 11722 | -8/Garrison | Triggered checkpoint 11930 | -8/Garrison | Triggered checkpoint 12101 | -8/Garrison | Expanded RIF knowledge: Hotswap 12147 | -8/Garrison | Discovered new exit (range 10) 12279 | -8/Garrison | Discovered new exit (range 10) 12547 | -8/Garrison | Discovered new exit (range 12) 12926 | -8/Garrison | Entered Factory 12926 | -7/Factory | Evolved 2 slots: Utility x2 13251 | -7/Factory | Build established: Skirmisher 13540 | -7/Factory | Found Powered Armor 13674 | -7/Factory | Allied Derelicts emerged from ambush trap array 13773 | -7/Factory | Discovered new exit (range 12) 13868 | -7/Factory | Discovered new exit (range 5) 14108 | -7/Factory | Identified exit to Lower Caves 14406 | -7/Factory | Discovered new exit (range 11) 14713 | -7/Factory | Entered Lower Caves 14714 | -7/Lower Caves | A Derelict revealed a hidden shortcut to meet someone special 14739 | -7/Lower Caves | Build established: Assassin 14839 | -7/Lower Caves | Entered Data Miner 14840 | -7/Data Miner | Discovered new exit (range 6) 14871 | -7/Data Miner | Met Data Miner 14897 | -7/Data Miner | Learned location of Section 7 (-3) 14897 | -7/Data Miner | Acquired the access code to Warlord's prototype stash 14926 | -7/Data Miner | Received God Mode back door access code from Data Miner 14992 | -7/Data Miner | Entered Proximity Caves 15079 | -6/Proximity Caves | Escorted by Enhanced Grunt 15136 | -6/Proximity Caves | Build established: Mutant 15569 | -6/Proximity Caves | Attracted the attention of an 0b10 checkpoint 15618 | -6/Proximity Caves | Build established: Skirmisher 15877 | -6/Proximity Caves | Learned Research garrison access intel 15877 | -6/Proximity Caves | Learned Armory emergency access door positions 15877 | -6/Proximity Caves | Learned Extension emergency access door positions 15877 | -6/Proximity Caves | Learned Armory trap positions 16014 | -6/Proximity Caves | Learned Factory security intel 16126 | -6/Proximity Caves | Snuck into a huge 0b10 base via the rear entrance 16558 | -6/Proximity Caves | Lost 4 parts (1p2n1u) 16611 | -6/Proximity Caves | Build established: Mutant 16633 | -6/Proximity Caves | Discovered new exit (range 16) 16834 | -6/Proximity Caves | Spotted B-75 Beast 16849 | -6/Proximity Caves | Allies destroyed B-75 Beast 16872 | -6/Proximity Caves | System corruption reached 10% 16985 | -6/Proximity Caves | Build established: Commander-Mutant 17016 | -6/Proximity Caves | Fabricated Combat Drone Bay? 17152 | -6/Proximity Caves | Entered Factory 17152 | -6/Factory | Accompanied by 5 allies 17152 | -6/Factory | Evolved 2 slots: Power x1, Utility x1 17315 | -6/Factory | Discovered new exit (range 15) 17387 | -6/Factory | Identified exit to Lower Caves 17451 | -6/Factory | Build established: Commander-Skirmisher 18991 | -6/Factory | System corruption reached 10% 19022 | -6/Factory | Entered Lower Caves 19023 | -6/Lower Caves | Encountered a Warlord checkpoint 19069 | -6/Lower Caves | Learned location of 1 exit from Factory 19202 | -6/Lower Caves | Learned Factory stockpile data 19620 | -6/Lower Caves | Build established: Skirmisher 19796 | -6/Lower Caves | Attracted the attention of an 0b10 checkpoint 19876 | -6/Lower Caves | Discovered new exit (range 10) 19954 | -6/Lower Caves | Entered another Lower Caves area 20130 | -6/Lower Caves | Discovered new exit (range 16) 20912 | -6/Lower Caves | Discovered new exit (range 5) 20984 | -6/Lower Caves | Learned Factory machine intel 21574 | -6/Lower Caves | Entered Zion 21640 | -6/Zion | System corruption cleaned by Quarantine Array 21683 | -6/Zion | Found CR-A16's Pointy Stick 21760 | -6/Zion | Discovered new exit (range 10) 21829 | -6/Zion | RIF detected upon attempting to enter Zion 21829 | -6/Zion | Attacked by Zionites 21830 | -6/Zion | Spotted BM-HLV(B) 21830 | -6/Zion | Spotted V6-MRP(B) 21854 | -6/Zion | Destroyed V6-MRP(B) 21872 | -6/Zion | Allies destroyed BM-HLV(B) 21913 | -6/Zion | 7V-RTL came to Zion's defense 22029 | -6/Zion | Allies destroyed 7V-RTL 22043 | -6/Zion | Found Adv. Powered Armor 22047 | -6/Zion | Lost 3 parts (2p1w) 22052 | -6/Zion | Found Adv. Powered Armor 22103 | -6/Zion | Found Prototype Device 22103 | -6/Zion | Identified 7V-RTL's Ultimate Field 22231 | -6/Zion | Found Prototype Special Weapon 22236 | -6/Zion | Found Prototype Special Weapon 22239 | -6/Zion | Found Prototype Special Weapon 22239 | -6/Zion | Identified RU-N14's Throwing Claymores (x3) 22306 | -6/Zion | Build established: Scavenger-Mutant 22372 | -6/Zion | Found RU-N14's Throwing Claymores 22481 | -6/Zion | Destroyed Imprinter 22492 | -6/Zion | Extracted access codes from Imprinter's data core 22794 | -6/Zion | Found Prototype Launcher 22794 | -6/Zion | Identified Rocket Array 22804 | -6/Zion | Found Rocket Array 23109 | -6/Zion | Learned Factory stockpile data 23212 | -6/Zion | Opened final containment barrier to the Deep Caves 23561 | -6/Zion | Found RU-N14's Throwing Claymores 24144 | -6/Zion | Learned location of 1 exit from Factory 24368 | -6/Zion | Found Relay Coupler [Programmer] 24371 | -6/Zion | Found Relay Coupler [Programmer] 24375 | -6/Zion | Found Relay Coupler [Programmer] 24387 | -6/Zion | Found Relay Coupler [Programmer] 24391 | -6/Zion | Found Relay Coupler [Programmer] 24497 | -6/Zion | Discovered new exit (range 3) 24497 | -6/Zion | Saw the warning signs outside the Deep Caves entrance 24504 | -6/Zion | Entered Deep Caves 24943 | -6/Deep Caves | Z-Facility disabled 25035 | -6/Deep Caves | Found Prototype Protection 25035 | -6/Deep Caves | Identified Zio. Weapon Casing 25270 | -6/Deep Caves | Found Prototype Protection 25882 | -6/Deep Caves | Discovered new exit (range 6) 26108 | -6/Deep Caves | Spotted as-94160 26139 | -6/Deep Caves | Core integrity fell below 50% 26145 | -6/Deep Caves | Destroyed as-94160 26173 | -6/Deep Caves | Found GOLEM Unit 26248 | -6/Deep Caves | Spotted as-33885 26294 | -6/Deep Caves | Destroyed as-33885 26308 | -6/Deep Caves | Found GOLEM Unit 26379 | -6/Deep Caves | Triggered Deep Caves wall 26381 | -6/Deep Caves | Exposed GOLEM chamber 26385 | -6/Deep Caves | Destroyed AS-22092 26419 | -6/Deep Caves | Spotted AS-39290 26424 | -6/Deep Caves | Destroyed AS-39290 26482 | -6/Deep Caves | Destroyed 45 combat bots 26659 | -6/Deep Caves | Found GOLEM Unit 26973 | -6/Deep Caves | Build established: Mutant 27284 | -6/Deep Caves | Identified Zio. Heavy Carapace 27383 | -6/Deep Caves | Build established: Golem 27384 | -6/Deep Caves | Found GOLEM Unit 27463 | -6/Deep Caves | Found Skeleton Box 27898 | -6/Deep Caves | Found Surveybot 24 Scanner 27901 | -6/Deep Caves | Found Surveybot 24 Chip 28223 | -6/Deep Caves | Found Zio. Heavy Carapace 28387 | -6/Deep Caves | Build established: Bothacker-Golem 28555 | -6/Deep Caves | Entered Proximity Caves 28722 | -5/Proximity Caves | Attracted the attention of an 0b10 checkpoint 29312 | -5/Proximity Caves | Core integrity fell below 20% 29329 | -5/Proximity Caves | Spotted B-75 Beast 29472 | -5/Proximity Caves | Learned location of 1 exit from Factory 29614 | -5/Proximity Caves | Discovered new exit (range 4) 29626 | -5/Proximity Caves | Entered Factory 29626 | -5/Factory | Evolved 2 slots: Utility x2 29627 | -5/Factory | Identified exit to Upper Caves 29628 | -5/Factory | Identified exit to Factory 29630 | -5/Factory | Loaded intel: 277 machine locations 29736 | -5/Factory | Identified exit to Extension 30057 | -5/Factory | Discovered exit to Factory (range 24) 30115 | -5/Factory | Discovered exit to Factory (range 24) 30508 | -5/Factory | Entered Extension 30508 | -5/Extension | Accompanied by 2 allies 30600 | -5/Extension | Rescued a captive Derelict 30688 | -5/Extension | Sage 6c assimilated hostile G-50 Soldier 30744 | -5/Extension | Rescued A7 31276 | -5/Extension | Disrupted transfer network 31562 | -5/Extension | Spotted B-75 Beast 31572 | -5/Extension | Destroyed B-75 Beast 31606 | -5/Extension | Spotted B-75 Beast 31624 | -5/Extension | Allies destroyed B-75 Beast 31685 | -5/Extension | Discovered exit to Factory (range 18) 31756 | -5/Extension | Rescued a captive Derelict 31761 | -5/Extension | Rescued a captive Derelict 31777 | -5/Extension | Rescued a captive Derelict 31856 | -5/Extension | Rescued a captive Derelict 31857 | -5/Extension | Rescued a captive Derelict 31897 | -5/Extension | Rescued a captive Derelict 31901 | -5/Extension | Rescued a captive Derelict 31910 | -5/Extension | Rescued a captive Derelict 31975 | -5/Extension | Rescued a captive Derelict 32008 | -5/Extension | First assault squad dispatched 32047 | -5/Extension | Found Prototype Protection 32047 | -5/Extension | Identified Med. Regenerative Plating 32098 | -5/Extension | Discovered exit to Factory (range 10) 32100 | -5/Extension | Discovered new exit (range 6) 32122 | -5/Extension | Entered Cetus 32122 | -5/Cetus | Accompanied by 8 allies (A7) 32127 | -5/Cetus | Acquired a Cetus Manufacturing Module code from A7 32148 | -5/Cetus | Spotted Cetus Guard 32148 | -5/Cetus | Spotted Cetus Guard 32149 | -5/Cetus | Spotted Cetus Guard 32150 | -5/Cetus | Spotted Cetus Guard 32154 | -5/Cetus | Allies destroyed Cetus Guard 32166 | -5/Cetus | Allies destroyed Cetus Guard 32171 | -5/Cetus | Allies destroyed Cetus Guard 32173 | -5/Cetus | Allies destroyed Cetus Guard 32280 | -5/Cetus | Started Cetus Manufacturing Module 32296 | -5/Cetus | P-70 Sage assimilated allied ER-0GV(l) 32299 | -5/Cetus | Cetus Manufacturing Module disabled 32301 | -5/Cetus | P-70 Sage assimilated allied GF-D0L(g) 32361 | -5/Cetus | Escorted A7 to Cetus Mainframe 32389 | -5/Cetus | Discovered new exit (range 16) 32428 | -5/Cetus | Spotted Cetus Guard 32429 | -5/Cetus | Spotted Cetus Guard 32434 | -5/Cetus | Allies destroyed Cetus Guard 32435 | -5/Cetus | Destroyed Cetus Guard 32435 | -5/Cetus | Spotted Cetus Guard 32441 | -5/Cetus | Destroyed Cetus Guard 32452 | -5/Cetus | Spotted Cetus Guard 32455 | -5/Cetus | Destroyed Cetus Guard 32459 | -5/Cetus | Extracted ID and sensor layout for unrecognized location from A7's data core 32471 | -5/Cetus | Discovered exit to Factory (range 15) 32482 | -5/Cetus | Met Revision 17 32610 | -5/Cetus | Entered Archives 33368 | -5/Archives | Discovered exit to Factory (range 16) 33391 | -5/Archives | Discovered new exit (range 13) 33503 | -5/Archives | Entered Hub_04(d) 33877 | -5/Hub_04(d) | Network Hub disabled 33877 | -5/Hub_04(d) | Network Hub disabled 33882 | -5/Hub_04(d) | Spotted Lightning 33882 | -5/Hub_04(d) | Spotted Lightning 33892 | -5/Hub_04(d) | Discovered exit to Factory (range 15) 33905 | -5/Hub_04(d) | Destroyed Lightning 33907 | -5/Hub_04(d) | Destroyed Lightning 33946 | -5/Hub_04(d) | Destroyed 8 combat bots 34131 | -5/Hub_04(d) | Discovered exit to Factory (range 9) 34141 | -5/Hub_04(d) | Spotted Lightning 34142 | -5/Hub_04(d) | Spotted Lightning 34145 | -5/Hub_04(d) | Spotted Lightning 34153 | -5/Hub_04(d) | System corruption reached 10% 34166 | -5/Hub_04(d) | Destroyed Lightning 34192 | -5/Hub_04(d) | Destroyed Lightning 34230 | -5/Hub_04(d) | Destroyed Lightning 34237 | -5/Hub_04(d) | Found Prototype Device 34237 | -5/Hub_04(d) | Identified Exp. Phase Shifter 34788 | -5/Hub_04(d) | Network Hub disabled 34968 | -5/Hub_04(d) | Network Hub disabled 35134 | -5/Hub_04(d) | Discovered exit to Factory (range 16) 35237 | -5/Hub_04(d) | Spotted B-75 Beast 35277 | -5/Hub_04(d) | Revealed the true nature of CR-A16's Pointy Stick 35283 | -5/Hub_04(d) | Destroyed B-75 Beast 35503 | -5/Hub_04(d) | Build established: Golem 35603 | -5/Hub_04(d) | First assault squad dispatched 35623 | -5/Hub_04(d) | Incoming assault squad redirected 35623 | -5/Hub_04(d) | Discovered exit to Factory (range 8) 35729 | -5/Hub_04(d) | Lost 10 parts (1p1n7u1w) 35734 | -5/Hub_04(d) | Found Imp. Powered Armor 35857 | -5/Hub_04(d) | Entered Factory 35857 | -4/Factory | Evolved 2 slots: Utility x1, Weapon x1 37473 | -4/Factory | Identified exit to Upper Caves 37698 | -4/Factory | Allied Derelicts emerged from ambush trap array 38096 | -4/Factory | Entered Upper Caves 38096 | -4/Upper Caves | Accompanied by 3 allies 38162 | -4/Upper Caves | Learned Research stockpile data 38372 | -4/Upper Caves | A Derelict revealed a hidden shortcut to "reach the base" 38375 | -4/Upper Caves | Identified exit to Warlord 38401 | -4/Upper Caves | Entered Warlord 38401 | -4/Warlord | Accompanied by 3 allies 38486 | -4/Warlord | System corruption cleaned by Quarantine Array 38571 | -4/Warlord | Discovered new exit (range 14) 38705 | -4/Warlord | Build established: Mutant 39142 | -4/Warlord | Build established: Golem 39149 | -4/Warlord | Identified exit to Proximity Caves 39151 | -4/Warlord | Entered Proximity Caves 39154 | -3/Proximity Caves | Unaware initiated a cargo recovery operation 39736 | -3/Proximity Caves | Found Prototype Launcher 39736 | -3/Proximity Caves | Identified Point Singularity Launcher 39742 | -3/Proximity Caves | Found Prototype Device 39742 | -3/Proximity Caves | Identified Exp. Transmission Jammer 39755 | -3/Proximity Caves | Found Prototype Slashing Weapon 39755 | -3/Proximity Caves | Identified Molecular Scythe 39766 | -3/Proximity Caves | Found Exp. Transmission Jammer 39966 | -3/Proximity Caves | Spotted B-86 Titan 39987 | -3/Proximity Caves | Destroyed B-86 Titan 40093 | -3/Proximity Caves | Discovered new exit (range 13) 40495 | -3/Proximity Caves | Attracted the attention of an 0b10 base 40543 | -3/Proximity Caves | Destroyed 9 combat bots 40557 | -3/Proximity Caves | Learned Research garrison access intel 40557 | -3/Proximity Caves | Learned Factory garrison access intel 40557 | -3/Proximity Caves | Learned Extension security intel 40557 | -3/Proximity Caves | Learned Extension emergency access door positions 40557 | -3/Proximity Caves | Learned Factory emergency access door positions 40557 | -3/Proximity Caves | Learned Armory trap positions 40557 | -3/Proximity Caves | Learned location of 1 exit from Proximity Caves 40835 | -3/Proximity Caves | Entered Research 40835 | -3/Research | Evolved 2 slots: Power x1, Utility x1 40837 | -3/Research | Loaded intel: 4 garrison access locations 40853 | -3/Research | Identified exit to Research 43097 | -3/Research | Found Quantum Capacitor 43424 | -3/Research | Cargo convoy interrupted 43451 | -3/Research | Incoming assault squad redirected 43987 | -3/Research | Identified exit to Armory 43987 | -3/Research | Identified exit to Quarantine 44085 | -3/Research | First assault squad dispatched 44104 | -3/Research | Incoming assault squad redirected 44447 | -3/Research | Entered Armory 44448 | -3/Armory | Loaded intel: 38 trap records 44757 | -3/Armory | P-80 Master assimilated allied Swordsman 8a 45740 | -3/Armory | First assault squad dispatched 45767 | -3/Armory | Incoming assault squad redirected 45823 | -3/Armory | Destroyed 7 combat bots 45992 | -3/Armory | Discovered new exit (range 3) 46067 | -3/Armory | Entered Lab 46318 | -3/Lab | Build established: Mutant 46518 | -3/Lab | Discovered exit to Research (range 9) 46541 | -3/Lab | Hidden lab's door opened automatically 46541 | -3/Lab | Sensor layout match revealed 46542 | -3/Lab | Gained access to the hidden lab's interior 46583 | -3/Lab | Found Alien Artifact 46609 | -3/Lab | Found Alien Artifact 46609 | -3/Lab | Identified Transdimensional Reconstructor 46609 | -3/Lab | Warped through subspace 46763 | -3/Lab | Build established: Golem 46914 | -3/Lab | Found Alien Artifact 46914 | -3/Lab | Identified Integrated Mediator 46914 | -3/Lab | Installed Integrated Mediator, increased core attachment efficiency. 46930 | -3/Lab | Found Alien Artifact 46930 | -3/Lab | Identified Core Expander 46930 | -3/Lab | Installed Core Expander, added new Power slot 47200 | -3/Lab | Build established: Generator-Mutant 47298 | -3/Lab | Found Prototype Hackware 47409 | -3/Lab | Found Prototype Device 47439 | -3/Lab | Unable to decrypt terminal 47497 | -3/Lab | Found Prototype Special Weapon 47497 | -3/Lab | Identified Gui. Remote Datajack 47535 | -3/Lab | Identified AEGIS Remote Shield 47547 | -3/Lab | Entered Research 47547 | -2/Research | Evolved 2 slots: Propulsion x2 47548 | -2/Research | Loaded intel: 4 garrison access locations 47584 | -2/Research | Found Quantum Capacitor 47845 | -2/Research | Spotted B-90 Cyclops 48139 | -2/Research | Discovered new exit (range 5) 48161 | -2/Research | Identified exit to Access 48163 | -2/Research | Entered Access 48163 | -1/Access | Evolved 2 slots: Power x1, Utility x1 48837 | -1/Access | Spotted B-99 Colossus 48840 | -1/Access | Spotted B-99 Colossus 48934 | -1/Access | Destroyed B-99 Colossus 48965 | -1/Access | Destroyed B-99 Colossus 48973 | -1/Access | Found Hvy. Insulated Plating 49019 | -1/Access | Discovered new exit (range 5) 49025 | *** | Escaped! Last Messages --------------- 48958_ Penetrated by Slug. 48958_ Slug penetrates Sealed Heavy Doors. 48962_ Knocked back. 48962_ Penetrated by Slug. 48962_ Slug penetrates Sealed Heavy Doors. 48963_ ALERT: Rogue bot located, Programmers report to Access Zone 4M. 48965_ B-99 Colossus suddenly blasts apart at the seams. 48965_ B-99 Colossus destroyed. 48969_ Dropped Hvy. Armor Plating. 48973_ Acquired Hvy. Insulated Plating. 48978_ Acquired Rnf. Quantum Reactor. 48979_ Acquired 5 matter. 48983_ Dropped Adv. Force Field. 48983_ Acquired Adv. Cooling System. 48984_ Dropped Relay Coupler [NC]. 48992_ Acquired Adv. Cooling System. 49019_ Main Access Shell breached. 49019_ EXIT=FOUND [Achievement: Victory By Combat] [Achievement: Superachiever] Map ----- +----------------------------------------------------+ | ?????????# # #?? #????# # | | ?????????# # #? #????? # | | ?????????# """"" # ###+############????# | | ?????????# """""""" # ??????????### | | ?????????# """""""" # ???????????? | | ?????????# """"" # ???????????? | | ?????????# % + ???????????? | | ?????????# # ######????????????????? | | ?????????# ! % # #?????????????????????? | | ????????############### ####??????????????????? | | ???????# #????????## #??????????????????? | | ??????# #??????????# ! #??????????????????? | | ??????##???????????# !!! #??????????????????? | | ???????????????????# % []%%] #??????????????????? | | ???????????????????# %!% %= ! #??????????????????? | | ???????????????????#!= % % #??????????????????? | | ???????????????????# % % #??????????????????? | | ???????????????????#"""" """""#??????????????????? | | ??????????????????????"%""???????????????????????? | | ??????????????????????" "????????????????????????? | | ???????????????????#""" """"""#??????????????????? | | ???????????????????# #??????????????????? | | ???????????????????# " """" #??????????????????? | | ???????????????????# " "?????????????????????? | | ???????????????????# ?" "" "?????????????????????? | | ???????????????????#??" "@ "?????????????????????? | | ??????????????????????" "?????????????????????? | | ??????????????????????""""""?????????????????????? | | ?????????????????????????????????????????????????? | | ?????????????????????????????????????????????????? | | ?????????????????????????????????????????????????? | | ?????????????????????????????????????????????????? | | ?????????????????????????????????????????????????? | | ?????????????????????????????????????????????????? | | ?????????????????????????????????????????????????? | | ?????????????????????????????????????????????????? | | ?????????????????????????????????????????????????? | | ?????????????????????????????????????????????????? | | ?????????????????????????????????????????????????? | | ?????????????????????????????????????????????????? | | ?????????????????????????????????????????????????? | | ?????????????????????????????????????????????????? | | ?????????????????????????????????????????????????? | | ?????????????????????????????????????????????????? | | ?????????????????????????????????????????????????? | | ?????????????????????????????????????????????????? | | ?????????????????????????????????????????????????? | | ?????????????????????????????????????????????????? | | ?????????????????????????????????????????????????? | | ?????????????????????????????????????????????????? | +----------------------------------------------------+ Best States ------------- Heat Dissipation 88 Coolant Potential 100 Energy Generation 105 Energy Capacity 1850 Matter Stores 300 Matter Capacity 300 Sight Range 16 Terrain Scan Range 24 Terrain Scan Density 2010 Jamming Range 22 Additional Mass Support 20 Armor Coverage 2600 Resistance: KI 15 Resistance: TH 15 Resistance: EX 15 Resistance: EM 15 Resistance: I 15 Resistance: S 15 Resistance: P 15 Weapon Shielding 100 Phase Shifting 8 Evasion (%) 48 Targeting Accuracy 10 Core Analysis 8 Recoil Reduction 4 Salvage Targeting 4 Offensive Hacking 14 Defensive Hacking 14 Relay Coupler Types 1 Relay Coupler Value 79 Item Schematics ----------------- Combat Drone Bay | -7/Data Miner | Free Lgt. Regenerative Plating | -7/Data Miner | Free Cld. Aerolev Unit | -7/Data Miner | Free Gravity Neutralizer | -7/Data Miner | Free Antimatter Cannon | -7/Data Miner | Free Linear Gravjet | -7/Data Miner | Free Recoil Nullifier | -7/Data Miner | Free Hvy. Phase Cannon | -7/Data Miner | Free Adv. System Restoration Module | -7/Data Miner | Free Lgt. Antimatter Reactor | -7/Data Miner | Free Robot Schematics ------------------ B-48 Gladiator | -7/Data Miner | Free S-27 Virus | -7/Data Miner | Free R-10 Processor | -7/Data Miner | Free M-14 Sweeper | -7/Data Miner | Free Fabricated ------------ Combat Drone Bay | x1 | -6/Proximity Caves Alien Tech Used ----------------- Transdimensional Reconstructor Integrated Mediator Core Expander Achievements -------------- 404 Superachiever Victory By Combat Challenges ------------ None Game ------ Seed FlakPortableCharge Manual? 0 Play Time 05:12:50 Cumulative 445.2 hours Start 2023.09.17 @ 12:11:02 End 2023.09.20 @ 19:07:34 Sessions 9 Manual Loads 0 Difficulty Rogue Special Mode None Game No. 509 Rogue 422 Adventurer 87 Explorer 0 Win Type 0 Total 24 Types 8/0/13/1/1/0/1/0/0 Lore% 86 Gallery% 91 Achievement% 75 Wizard Run 0 Options --------- ASCII 0 Keyboard 1 Movement Numpad Keybinds 0 Fullscreen 1 Font 18/SmallcapsGlow Map View 76x50 Tactical HUD 1 Map Filters NONE Filters NONE Steam 1 RUN: 3a32bcb6-d2a9-4db2-a5c7-193aa12a0ee7